Workbook

Sheet Indice
B1: Sociedad: | C1: GROW S.A.E.C.A. | D1: <-- Colocar Nombre de la Sociedad
S2: 1 | T2: Enero
S3: 2 | T3: Febrero
S4: 3 | T4: Marzo
S5: 4 | T5: Abril
A6: Fecha Presentación: | B6: 2022-09-30 | C6: <-- Completar Fecha en formato (DD/MM/AAA) | S6: 5 | T6: Mayo
S7: 6 | T7: Junio
S8: 7 | T8: Julio
C9: INDICE | D9: REF. | S9: 8 | T9: Agosto
B10: Informacion General | S10: 9 | T10: Septiembre
C11: Descripción de la naturaleza y del negocio de la Sociedad | D11: Nota 1 | S11: 10 | T11: Octubre
C12: Resumen de las principales políticas contables | D12: Nota 2 | S12: 11 | T12: Noviembre
B13: Balance General | D13: BG | S13: 12 | T13: Diciembre
C14: Efectivo y equivalente de efectivo | D14: Nota 3
C15: Inversiones temporales | D15: Nota 4
C16: Cuentas por cobrar comerciales | D16: Nota 5
C17: Otros créditos | D17: Nota 6
C18: Cuentas por cobrar comerciales | D18: Nota 5
C19: Inventarios | D19: Nota 7
C20: Inversión en asociadas | D20: Nota 8
C21: Propiedades, planta y equipo | D21: Nota 9
C22: Activos disponibles para la venta | D22: Nota 10
C23: Activos intangibles | D23: Nota 11
C24: Goodwill | D24: Nota 12
C25: Cuentas por pagar comerciales | D25: Nota 13
C26: Préstamos a corto plazo | D26: Nota 14
C27: Porción corriente de la deuda a largo plazo | D27: Nota 15
C28: Remuneraciones y cargas sociales a pagar | D28: Nota 16
C29: Impuestos a pagar | D29: Nota 17
C30: Provisiones | D30: Nota 18
C31: Otros pasivos corrientes | D31: Nota 19
C32: Prestamos a largo plazo | D32: Nota 14
C33: Otros pasivos no corrientes | D33: Nota 19
C34: Capital integrado | D34: Nota 20
C35: Reserva de revalúo | D35: Nota 21
C36: Reserva legal | D36: Nota 21
C37: Reservas estatutarias | D37: Nota 21
C38: Reservas facultativas | D38: Nota 21
C39: Diferencia transitoria por conversión | D39: Nota 22
C40: Resultados acumulados | D40: Nota 23
C41: Interés minoritario | D41: Nota 24
B42: Estado de Resultados | D42: ER
C43: Ventas | D43: Nota 25
C44: Costo de ventas | D44: Nota 26
C45: Gastos de ventas | D45: Nota 27
C46: Gastos administrativos | D46: Nota 27
C47: Otros ingresos y gastos operativos | D47: Nota 28
C48: Ingresos financieros - neto | D48: Nota 29
C49: Gastos financieros - neto | D49: Nota 29
C50: Resultado de inversiones en asociadas | D50: Nota 30
C51: Resultado participación minoritaria | D51: Nota 31
C52: Impuesto a la renta | D52: Nota 32
C53: Resultado extraordinario neto de impuesto a la renta | D53: Nota 33
C54: Resultado sobre actividades discontinuadas neto de impuesto a la renta | D54: Nota 34
C55: Utilidad/(Pérdida) neta del año | D55: Nota 35
C56: Utilidad neta por acción ordinaria | D56: Nota 35
B57: Estado de Evolución del Patrimonio Neto | D57: EVPN
B58: Estado de Flujos de Efectivo | D58: EFE
B59: Otras Notas de los Estados Financieros
C60: Activos gravados | D60: Nota 36
C61: Contingencias y compromisos | D61: Nota 37
C62: Impuesto diferido | D62: Nota 38
C63: Hechos posteriores | D63: Nota 39
C64: Saldos y transacciones con partes relacionadas | D64: Nota 40

Sheet BG
E1: Indice
C6: GROW S.A.E.C.A.
A7: BALANCE GENERAL
A8: =IFERROR(IF(Indice!B6="","Al dia... de mes… de año 2XX2…","Al "&DAY(Indice!B6)&" de "&VLOOKUP(MONTH(Indice!B6),Indice!S:T,2,0)&" de "&YEAR(Indice!B6)),"Al dia... de mes… de año 2XX2…") -> Al 30 de Septiembre de 2022
A9: (En miles de guaraníes)
E11: Nota | F11: =IFERROR(IF(Indice!B6="","2XX2",YEAR(Indice!B6)),"2XX2") -> 2022 | G11: =IFERROR(YEAR(Indice!B6-366),"2XX1") -> 2021
B12: ACTIVOS
B13: Activos Corrientes
C14: Efectivo y equivalente de efectivo | E14: 3 | F14: ='Nota 3'!C20 -> 575697 | G14: ='Nota 3'!D20 -> 1197356
C15: Inversiones temporales | E15: 4 | F15: ='Nota 4'!B18 -> 0 | G15: ='Nota 4'!C18 -> 0
C16: Cuentas por cobrar comerciales | E16: 5 | F16: ='Nota 5'!C31 -> 23627883 | G16: ='Nota 5'!D31 -> 16750877
C17: Otros créditos | E17: 6 | F17: ='Nota 6'!B17 -> 682511 | G17: ='Nota 6'!C17 -> 473144
C18: Inventarios | E18: 7 | F18: ='Nota 7'!B15 -> 0 | G18: ='Nota 7'!C15 -> 0
C19: Total activos corrientes | F19: =SUM(F14:F18) -> 24886091 | G19: =SUM(G14:G18) -> 18421377
B20: Activos no Corrientes
C21: Otros créditos | E21: 6 | F21: ='Nota 6'!F15 -> 13755 | G21: ='Nota 6'!G15 -> 13954
C22: Cuentas por cobrar comerciales | E22: 5 | F22: ='Nota 5'!C58 -> 0 | G22: ='Nota 5'!D58 -> 0
C23: Inversión en asociadas | E23: 8 | F23: ='Nota 8'!B8 -> 302550 | G23: ='Nota 8'!C8 -> 68730
C24: Propiedades, planta y equipo/Bienes de uso, neto | E24: 9 | F24: ='Nota 9'!L25 -> 442439 | G24: ='Nota 9'!M25 -> 506742
C25: Activos disponibles para la venta | E25: 10 | F25: ='Nota 10'!B20 -> 2643782 | G25: ='Nota 10'!C20 -> 2506367
C26: Activos intangibles | E26: 11 | F26: ='Nota 11'!B10 -> 0 | G26: ='Nota 11'!C10 -> 0
C27: Goodwill | E27: 12 | F27: ='Nota 12'!B11 -> 0 | G27: ='Nota 12'!C11 -> 0
C28: Total activos no corrientes | F28: =SUM(F21:F27) -> 3402526 | G28: =SUM(G21:G27) -> 3095793
B29: Total Activos | F29: =+F19+F28 -> 28288617 | G29: =+G19+G28 -> 21517170
B30: PASIVOS Y PATRIMONIO NETO
B31: Pasivos corrientes | F31: -1
C32: Cuentas por pagar comerciales | E32: 13 | F32: ='Nota 13'!D13+'Nota 13'!D20 -> 436469 | G32: ='Nota 13'!E13+'Nota 13'!E20 -> 623896
C33: Préstamos a corto plazo | E33: 14 | F33: ='Nota 14'!E31 -> 0 | G33: ='Nota 14'!K31 -> 3351103
C34: Porción corriente de la deuda a largo plazo | E34: 15 | F34: ='Nota 15'!B15 -> 0 | G34: ='Nota 15'!C15 -> 0
C35: Remuneraciones y cargas sociales a pagar | E35: 16 | F35: ='Nota 16'!B12 -> 32606 | G35: ='Nota 16'!C12 -> 8173
C36: Impuestos a pagar | E36: 17 | F36: ='Nota 17'!B13 -> 309440 | G36: ='Nota 17'!C13 -> 40360
C37: Provisiones | E37: 18 | F37: ='Nota 18'!B13 -> 0 | G37: ='Nota 18'!C13 -> 0
C38: Otros pasivos corrientes | E38: 19 | F38: ='Nota 19'!B14 -> 0 | G38: ='Nota 19'!C14 -> 0
C39: Total Pasivos Corrientes | F39: =SUM(F32:F38) -> 778515 | G39: =SUM(G32:G38) -> 4023532
B40: Pasivos no corrientes
C41: Préstamos a largo plazo | E41: 14 | F41: ='Nota 14'!E54 -> 0 | G41: ='Nota 14'!K54 -> 0
C42: Ingresos Diferidos | E42: 19 | F42: ='Nota 19'!F14 -> 9343203 | G42: ='Nota 19'!G14 -> 315321
C43: Total pasivos no corrientes | F43: =SUM(F41:F42) -> 9343203 | G43: =SUM(G41:G42) -> 315321
B45: Total Pasivos | F45: =+F39+F43 -> 10121718 | G45: =+G39+G43 -> 4338853 | H45: 0 | I45: 0
B46: Patrimonio Neto
C47: Capital integrado | E47: 20 | F47: ='Nota 20'!B11 -> 13936100 | G47: ='Nota 20'!C11 -> 10000000
C48: Reserva de revalúo | E48: 21 | F48: =' Nota 21'!B8 -> 35270 | G48: =' Nota 21'!C8 -> 35270
C49: Reserva legal | E49: 21 | F49: =' Nota 21'!B12 -> 483409 | G49: =' Nota 21'!C12 -> 417517
C50: Reservas estatutarias | E50: 21 | F50: =' Nota 21'!B16 -> 0 | G50: =' Nota 21'!C16 -> 0
C51: Reservas facultatitvas | E51: 21 | F51: =' Nota 21'!B20 -> 2460172 | G51: =' Nota 21'!C20 -> 3961686 | H51: 0
C52: Diferencia transitoria por conversión | E52: 22 | F52: ='Nota 22'!B8 -> 0 | G52: ='Nota 22'!C8 -> 0
C53: Resultados acumulados | E53: 23 | F53: ='Nota 23'!B10 -> 1251948 | G53: ='Nota 23'!C10 -> 2763844
C54: Subtotal | F54: =SUM(F47:F53) -> 18166899 | G54: =SUM(G47:G53) -> 17178317
C55: Interés minoritario | E55: 24 | F55: ='Nota 24'!B8 -> 0 | G55: ='Nota 24'!C8 -> 0
B56: Total Patrimonio Neto | F56: =F54 -> 18166899 | G56: =G54 -> 17178317
B57: Total Pasivos y Patrimonio Neto | F57: =+F45+F56 -> 28288617 | G57: =+G45+G56 -> 21517170
F61: =+F57-F29 -> 0 | G61: =+G57-G29 -> 0

Sheet ER
B1: Indice | D1: =ER!A4 -> 
A6: GROW S.A.E.C.A.
A7: ESTADO DE RESULTADOS
A8: =IFERROR(IF(Indice!B6="","Al dia... de mes… de año 2XX2…","Al "&DAY(Indice!B6)&" de "&VLOOKUP(MONTH(Indice!B6),Indice!S:T,2,0)&" de "&YEAR(Indice!B6)),"Al dia... de mes… de año 2XX2…") -> Al 30 de Septiembre de 2022
A9: Comparativo con igual período del año anterior
A10: (En miles de guaraníes)
B12: Nota | C12: =IFERROR(IF(Indice!B6="","2XX2",YEAR(Indice!B6)),"2XX2") -> 2022 | D12: =IFERROR(YEAR(Indice!B6-366),"2XX1") -> 2021
A13: Ventas | B13: 25 | C13: ='Nota 25'!B30 -> 5710906.185 | D13: ='Nota 25'!C30 -> 4159440
A14: Costo de ventas | B14: 26 | C14: ='Nota 26'!B21 -> 214363 | D14: ='Nota 26'!C21 -> 83763
A15: Utilidad bruta | C15: =C13-C14 -> 5496543.185 | D15: =D13-D14 -> 4075677
A16: Gastos de ventas | B16: 27 | C16: ='Nota 27'!B35 -> 271042 | D16: ='Nota 27'!E35 -> 164573
A17: Gastos administrativos | B17: 27 | C17: ='Nota 27'!C35 -> 3822721 | D17: ='Nota 27'!F35 -> 2468030
A18: Otros ingresos y gastos operativos | B18: 28
A19: Resultado operativo | C19: =SUM(C16:C18) -> 4093763 | D19: =SUM(D16:D18) -> 2632603
A20: Ingresos financieros - neto | B20: 29 | C20: ='Nota 29'!B14 -> 0 | D20: ='Nota 29'!C14 -> 0
A21: Gastos financieros - neto | B21: 29 | C21: ='Nota 29'!F14 -> 0 | D21: ='Nota 29'!G14 -> 0
A22: Subtotal | C22: =SUM(C20:C21) -> 0 | D22: =SUM(D20:D21) -> 0
A23: Resultado de inversiones en asociadas | B23: 30 | C23: ='Nota 30'!B16 -> 0 | D23: ='Nota 30'!C16 -> 0
A24: Resultados ordinarios antes de impuesto a la renta y participación minoritaria | C24: =C22+C23 -> 0 | D24: =D22+D23 -> 0
A25: Resultado participación minoritaria | B25: 31 | C25: ='Nota 31'!B16 -> 0 | D25: ='Nota 31'!C16 -> 0
A26: Resultado ordinario antes del impuesto a la renta | C26: =+C15-C19 -> 1402780.185 | D26: =+D15-D19 -> 1443074
A27: Impuesto a la renta | B27: 32 | C27: ='Nota 32'!B14 -> 150832 | D27: ='Nota 32'!C14 -> 150160
A28: Resultado neto de actividades ordinarias | C28: =C26-C27 -> 1251948.185 | D28: =D26-D27 -> 1292914
A29: Resultado extraordinario neto de impuesto a la renta | B29: 33 | C29: ='Nota 33'!B14 -> 0 | D29: =+'Nota 33'!C9 -> 0
A30: Resultado sobre actividades discontinuadas neto de impuesto a la renta | B30: 34 | C30: ='Nota 34'!B12 -> 0 | D30: ='Nota 34'!C12 -> 0
A31: Utilidad/(Pérdida) neta del año | C31: =C28+C29+C30 -> 1251948.185 | D31: =D28+D29+D30 -> 1292914
A32: Utilidad neta por acción ordinaria | B32: 35 | C32: ='Nota 35'!B10 -> 8.983490252 | D32: ='Nota 35'!C10 -> 12.92914
A40: …............................. | C40: ….............................
A41: Marcos Amarilla | C41: William Cuadra
A42: Director | C42: Contador

Sheet EVPN (hidden)
A1: =Indice!C1 -> GROW S.A.E.C.A. | H1: Indice
F4: ESTADO DE EVOLUCIÓN DEL PATRIMONIO NETO
H5: =IFERROR(IF(Indice!B6="","Al dia... de mes… de año 2XX2…","Al "&DAY(Indice!B6)&" de "&VLOOKUP(MONTH(Indice!B6),Indice!S:T,2,0)&" de "&YEAR(Indice!B6)),"Al dia... de mes… de año 2XX2…") -> Al 30 de Septiembre de 2022
A6: Comparativo con igual periodo del año anterior
A7: (En miles de guaraníes)
C10: Aporte de los propietarios | L10: Ganancias reservadas
C11: Capital suscripto e integrado | D11: Aporte para | F11: Primas de emisión | H11: Reserva de revalúo | J11: Reserva de revalúo técnico | L11: Reserva legal | N11: Reserva facultativa | P11: Resultados acumulados | R11: Interes Minoritario | T11: Total
D12: aumento de capital | P12: Total
A14: =IFERROR(IF(Indice!B6="","Saldo al .. de de 20X0 ","Saldo al "&DAY(Indice!B6)&" de "&VLOOKUP(MONTH(Indice!B6),Indice!S:T,2,0)&" de "&YEAR(Indice!B6-730)),"Saldo al .. de de 20X0 ") -> Saldo al 30 de Septiembre de 2020 | C14: =5330900+617186 -> 5948086 | H14: 13376 | L14: 106081 | P14: =793083-74505 -> 718578 | T14: =+SUM(C14:R14) -> 6786121
A15: Cambio en política contable (Nota….)
A16: Saldo reestructurado | C16: =+C14 -> 5948086 | E16: =+E14 -> 0 | F16: 0 | G16: 0 | H16: 13376 | I16: 0 | J16: 0 | K16: 0 | L16: 106081 | M16: 0 | N16: 0 | O16: 0 | P16: 718578 | Q16: 0 | R16: 0 | S16: 0 | T16: =+SUM(C16:R16) -> 6786121
A17: Distribución de dividendos s/Acta de Asamblea Ordinaria N°… de fecha………
A18: Integración del capital social | C18: 482500 | F18: 11550 | H18: 11722 | J18: 0 | L18: 59911 | P18: 0 | T18: =+SUM(C18:R18) -> 565683
A19: Reducción del capital social s/Acta de Asamblea General Ordinaria N°… de fecha……..
A20: Revalúo de activos fijos
A21: Revalúo técnico
A22: Resultado del año | P22: 1138316
A24: =IFERROR(IF(Indice!B6="","Saldo al .. de de 20X1 ","Saldo al "&DAY(Indice!B6)&" de "&VLOOKUP(MONTH(Indice!B6),Indice!S:T,2,0)&" de "&YEAR(Indice!B6-365)),"Saldo al .. de de 20X1 ") -> Saldo al 30 de Septiembre de 2021 | C24: =C16+C17+C18+C19+C20+C21+C22 -> 6430586 | D24: =SUM(D14:D22) -> 0 | F24: =F16+F17+F18+F19+F20+F21+F22 -> 11550 | G24: =SUM(G14:G23) -> 0 | H24: =H16+H17+H18+H19+H20+H21+H22 -> 25098 | J24: =J16+J17+J18+J19+J20+J21+J22 -> 0 | L24: =L16+L17+L18+L19+L20+L21+L22 -> 165992 | N24: =N16+N17+N18+N19+N20+N21+N22 -> 0 | P24: =P16+P17+P18+P19+P20+P21+P22 -> 1856894 | R24: =R16+R17+R18+R19+R20+R21+R22 -> 0 | T24: =+SUM(C24:R24) -> 8490120
A25: Distribución de dividendos s/Acta de Asamblea General Ordinaria N°… de fecha………
A26: Revalúo de activos fijos | C26: 2169236 | F26: 754721 | H26: 10170 | L26: 72297 | N26: =+' Nota 21'!B23 -> 270900 | P26: 1373382 | T26: =+SUM(C26:R26) -> 4650706
A27: Desafectación de la reserva de revalúo técnico
A28: Resultado del año | P28: -1856895
A30: =IFERROR(IF(Indice!B6="","Saldo al .. de de 20X2 ","Saldo al "&DAY(Indice!B6)&" de "&VLOOKUP(MONTH(Indice!B6),Indice!S:T,2,0)&" de "&YEAR(Indice!B6)),"Saldo al .. de de 20X2 ") -> Saldo al 30 de Septiembre de 2022 | C30: =C24+C25+C26+C27+C28 -> 8599822 | D30: =SUM(D24:D28) -> 0 | F30: =F24+F25+F26+F27+F28 -> 766271 | H30: =H24+H25+H26+H27+H28 -> 35268 | J30: =J24+J25+J26+J27+J28 -> 0 | L30: =L24+L25+L26+L27+L28 -> 238289 | N30: =N24+N25+N26+N27+N28 -> 270900 | P30: =P24+P25+P26+P27+P28 -> 1373381 | R30: =R24+R25+R26+R27+R28 -> 0 | T30: =+SUM(C30:R30) -> 11283931
A32: Las notas que se acompañan forman parte integrante de estos estados.

Sheet EFE (hidden)
A1: =Indice!C1 -> GROW S.A.E.C.A.
A5: ESTADO DE FLUJOS DE EFECTIVO (Método directo)
A6: =IFERROR(IF(Indice!B6="","Al dia... de mes… de año 2XX2…","Al "&DAY(Indice!B6)&" de "&VLOOKUP(MONTH(Indice!B6),Indice!S:T,2,0)&" de "&YEAR(Indice!B6)),"Al dia... de mes… de año 2XX2…") -> Al 30 de Septiembre de 2022
A7: Comparativo con igual periodo del año anterior
A8: (En miles de guaraníes)
B11: =IFERROR(IF(Indice!B6="","2XX2",YEAR(Indice!B6)),"2XX2") -> 2022 | C11: =IFERROR(YEAR(Indice!B6-365),"2XX1") -> 2021
A13: FLUJO DE EFECTIVO DE ACTIVIDADES OPERATIVAS
A14: Cobranzas efectuadas a clientes | B14: 1288709 | C14: 1288709
A15: Pagos efectuados a proveedores y empleados | B15: -293928 | C15: -293928
A16: Efectivo generado por las operaciones | B16: -2503675 | C16: -2503675
A17: Intereses pagados | B17: -165228 | C17: -165228
A18: Otros ingresos y (egresos) - neto
A19: Pagos de impuesto a la renta | B19: -173859 | C19: -173859
A20: Flujo neto de efectivo de actividades operativas | B20: =SUM(B14:B19) -> -1847981 | C20: =SUM(C14:C19) -> -1847981
A22: FLUJO DE EFECTIVO DE ACTIVIDADES DE INVERSIÓN
A23: Adquisición de bienes de uso | B23: -17145 | C23: -17145
A24: Adquisición de bienes Curtiembre - fideicomitida
A25: Ventas de activos fijos | B25: 0 | C25: 0
A26: Ventas de bienes de uso
A27: Intereses cobrados sobre inversiones
A28: Aquisición de inversiones | B28: -450042 | C28: -450042
A29: Flujo neto de efectivo de actividades de inversión | B29: =SUM(B23:B28) -> -467187 | C29: =SUM(C23:C28) -> -467187
A31: FLUJO DE EFECTIVO DE ACTIVIDADES DE FINANCIACIÓN
A32: (Disminución) Incremento de préstamos | B32: 1101771 | C32: 1101771
A33: Aportes de capital recibidos | B33: 1078612 | C33: 1078612
A34: Dividendos pagados | B34: -296210 | C34: -296210
A35: Flujo neto de efectivo de actividades de financiamiento | B35: =B32+B33+B34 -> 1884173 | C35: =C32+C33+C34 -> 1884173
A37: (Disminución) Incremento neto de efectivo | B37: =+B20+B29+B35 -> -430995 | C37: =+C20+C29+C35 -> -430995
A38: Efecto estimado de la diferencia de cambio sobre el saldo de efectivo | B38: 0 | C38: 0
A39: Efectivo al principio del año | B39: 1022091 | C39: 1022091
A41: Efectivo al final del periodo | B41: =+SUM(B37:B39) -> 591096 | C41: =+SUM(C37:C39) -> 591096
A43: Las notas que se acompañan forman parte integrante de estos estados.

Sheet Nota1
A1: =Indice!C1 -> GROW S.A.E.C.A. | I1: BG
A6: NOTAS A LOS ESTADOS FINANCIEROS CORRESPONDIENTES AL PERIODO TERMINADO | H6: =IFERROR(IF(Indice!B6="","Al dia... de mes… de año 2XX2…","Al "&DAY(Indice!B6)&" de "&VLOOKUP(MONTH(Indice!B6),Indice!S:T,2,0)&" de "&YEAR(Indice!B6)),"Al dia... de mes… de año 2XX2…") -> Al 30 de Septiembre de 2022
A7: Presentadas en forma comparativa con el periodo terminado | F7: =IFERROR("Al "&DAY(Indice!B6)&" de "&VLOOKUP(MONTH(Indice!B6),Indice!S:T,2,0)&" de "&YEAR(Indice!B6-365),"Al dia... de mes… de año 2XX1…") -> Al 30 de Septiembre de 2021
A11: NOTA 1 – DESCRIPCIÓN DE LA NATURALEZA Y DEL NEGOCIO DE LA COMPAÑÍA
A12: GROW SOCIEDAD ANÓNIMA EMISORA DE CAPITAL ABIERTO., fue constituida por Escritura Pública Nº 122 del nueve de mayo del año dos mil catorce, ante la notaria y escribana pública Natalia Elizabeth Ylari, de Cambyreta, República del Paraguay, inscripta en el Registro Público de Comercio bajo el Nº 938, Serie I. folio 11385 y siguientes de la Sección Contratos, el día once de julio de dos mil catorce; e inscripta en el Registro de las Personas Jurídicas y Asociaciones bajo el Nº 719, folio 7907 y siguientes, serie E, el día once de julio del año dos mil catorce. La Sociedad fija domicilio en la Ciudad de Encarnación, Itapúa. La duración de la Sociedad será de noventa y nueve años. Actualizadas por la escritura pública de protocolización de acta de asamblea General Ordinaria del 20 de abril del año 2015 pasada ante la escribana Publica Natalia Elizabeth Ylari, de Cambyreta, inscripta en la Dirección General de Registros Públicos sección comercial bajo el N° 1 folio 1 y siguientes en fecha 05 de agosto de 2015. Modificada por la escritura pública N° 121 del 11 de mayo del 2016 pasada ante la escribana Publica Natalia Elizabeth Ylari, de Cambyreta, inscripta en la Dirección General de Registros Públicos sección comercial bajo el N° 1 folio 1 y siguientes en fecha 20 de septiembre de 2016 con la cual obtuvo la denominación de GROW S.A.E.C.A. Modificada por la escritura Pública N° 108 del 22 de abril del 2022 pasada ante la escribana Pública Natalia Elizabeth Ylari, en Cambyreta, incripta en la Dirección General de Registros Público Sección Personas Jurídicas y Comercio bajo el N° 3, Folio 20 en fecha 28/09/2022; por el cual se modifica el Capital Social y se establecen nuevas clases de acciones. La sociedad tendrá por objeto principal: Créditos Personales; Créditos Hipotecarios; Créditos prendarios; además toda transacción comercial o crediticia que implique la tenencia, negociación garantía o inversión en títulos valores financieros o bursátiles.

Sheet Nota 2
A1: =Indice!C1 -> GROW S.A.E.C.A. | I1: BG
A6: NOTA 2 - RESUMEN DE LAS PRINCIPALES POLÍTICAS CONTABLES
A7: Resumen de las principales políticas contables: a modo referencial, se incluyen las siguientes revelaciones de políticas contables en estados financieros de uso general que podrá ser tenida en consideración por las sociedades emisoras para la preparación de este capítulo de los estados financieros:
A10: a. Bases de contabilización (Según NIF Bases de preparación de los Estados Financieros)
A11: Los estados financieros se han preparado siguiendo los criterios de las Normas de Información Financiera (NIF) emitidas por el Consejo de Contadores Públicos del Paraguay sobre la base de costos históricos, excepto para el caso de activos y pasivos en moneda extranjera y las propiedades, planta y equipo según se explica en los puntos c ) y k), y no reconocen en forma integral los efectos de la inflación sobre la situación patrimonial y financiera de la sociedad, sobre los resultados de sus operaciones y los flujos de efectivo, en atención a que la corrección monetaria no constituye una práctica contable obligatoria en el Paraguay.
A12: De haberse aplicado una corrección monetaria integral de los estados financieros, podrían haber surgido diferencias en la presentación de la situación patrimonial y financiera de la sociedad, en los resultados de sus operaciones y en los flujos de efectivo al ….., y por los ejercicios cerrados el, 31 de diciembre de 2020 y 2019. Según el índice general de precios del consumo (IPC) publicado por el Banco Central del Paraguay, la inflación fue de 00,0% en el año 20X2 y 00,0% en el año 20X1. Obs: Datos a incorporar para cierre del ejercicio
A15: b. Uso de estimaciones contables
A16: La preparación de los presentes estados financieros requiere que la Gerencia de la sociedad realice estimaciones y evaluaciones que afectan el monto de los activos y pasivos registrados y contingentes, como así también los ingresos y egresos registrados en el ejercicio. Los resultados reales futuros pueden diferir de las estimaciones y evaluaciones realizadas a la fecha de preparación de los presentes estados financieros.
A18: c. Moneda extranjera
A19: Los activos y pasivos en moneda extranjera se valúan a los tipos de cambio vigentes a la fecha de cierre del ejercicio.
A20: Las diferencias de cambio originadas por fluctuaciones en los tipos de cambio producidos entre las fechas de concertación de las operaciones y su liquidación o valuación al cierre del ejercicio, son reconocidas en resultados.
C23: =IFERROR(IF(Indice!B6="","2XX2",YEAR(Indice!B6)),"2XX2") -> 2022 | G23: =IFERROR(YEAR(Indice!B6-365),"2XX1") -> 2021
B24: Indicar moneda | C24: Simbología según ISO 4217 | D24: Miles de G. | F24: Indicar moneda | G24: Simbología según ISO 4217 | H24: Miles de G.
A25: Activos | B25: Guaraníes | C25: G | D25: 17389963.33
A27: Pasivos | B27: Guaraníes | C27: G | D27: 1963067.895
A29: Posición neta | D29: =+D25-D27 -> 15426895.43 | H29: =+H25-H27 -> 0
A32: A la fecha de emisión de estos estados financieros, el tipo de cambio de la moneda extranjera Dolares Americanos tuvo una infima variacióne (varió en un 0,88%) con respecto al vigente al 30 de septiembre 2020
A34: d. Efectivo y equivalentes de efectivo
A35: Se considerarán dentro del concepto de efectivo los saldos en efectivo, disponibilidades en cuentas bancarias y toda inversión de muy alta liquidez, con vencimiento originalmente pactado no superior a tres meses.
A38: e. Inversiones
A39: Las inversiones temporales se valúan de acuerdo a los siguientes criterios de valuación:  Valores mobiliarios: a su valor de cotización al cierre del año/período menos los gastos estimados de venta. Ver Nota ....  Colocaciones financieras en moneda local: a su valor nominal más los intereses devengados al cierre del año/período. Ver Nota ....  Colocaciones financieras en moneda extranjera: a su valor de cotización al cierre del año/período más intereses devengados a ese momento. Ver Nota ....  Las inversiones no corrientes en sociedades donde no se ejerce el control, se valúan a su valor patrimonial proporcional. Ver Nota ....
A40: Obs.: En caso de la existencia de saldos y transacciones con partes relacionadas, la información que corresponda a ser expuesta por la sociedad, se ajustará a lo requerido por la Norma de Información Financiera N° 7 Revelaciones de partes relacionadas.
A43: f. Previsión para cuentas de dudoso cobro/incobrables
A44: En cuanto a la constitución de previsiones, la entidad se encuentra ceñida a lo establecido en el Art. Nº 126 de la Ley Nº 5810/17 del Mercado de Valores. Como mejor practica y cobertura, la entidad mantiene previsiones según su politica de créditos. Las previsiones para cuentas de dudoso cobro se determinan al cierre de cada ejercicio y/o mensualmente sobre la base del estudio de la cartera de créditos realizado con el objeto de determinar la porción no recuperable de las cuentas a cobrar. El valor de la previsión al cierre no deberá ser menor al 40% de la cartera en mora.
A46: Situación | B46: Días de Atraso
A47: Vigente | B47: 0 a 60
A48: Vencido | B48: 61 a 90
A49: Gestión | B49: 91 a 180
A50: Moroso | B50: 181 a 241
A51: Judiciales | B51: Judiciales
A55: g. Inventarios
A56: Las existencias se valúan al menor entre su costo de adquisición o de producción y su valor neto de realización (NIF 12, párrafo 5). Para determinar el consumo (baja de inventarios) se aplicarán las fórmulas de costeo siguientes: FIFO, (Primero Entrado Primero en Salir – PEPS); PPP (Precio Promedio Ponderado); o identificación específica (NIF 12, párrafos 16 a 20). Ver Nota ... No aplica
A59: h. Activos disponibles para la venta
A60: Los activos disponibles para la venta representan bienes que fueron desafectados de la actividad productiva y se mantienen con el único objetivo de ser vendidos. Los mismos se valúan, sin amortizar, al menor entre el valor de mercado de los mismos y su costo (valor libro) al momento de su designación como disponibles para la venta.
A63: i. Previsiones para desvalorización y deterioro de inventarios
A64: Las previsiones para desvalorización y deterioro de inventarios han sido estimadas tomando como base la valorización del stock deteriorado existente al cierre del ejercicio.
A66: j. Propiedades, planta y equipo
A67: Las propiedades, planta y equipo se exponen a su costo histórico ajustado por el coeficiente de revalúo emitido por la Autoridad Tributaria, menos la correspondiente depreciación acumulada. El incremento neto por la re-expresión se acredita a la respectiva reserva patrimonial, cuyo saldo puede ser utilizado únicamente para aumentar el capital.
A68: El costo de las mejoras que extienden la vida útil de los bienes o aumentan su capacidad productiva es imputado a las cuentas respectivas del activo. Los gastos de mantenimiento son cargados a resultados.
A69: La depreciación es calculada por el método de línea recta, saldo decreciente o suma de unidades (la emisora elige uno de los tres métodos con base en el patrón esperado de beneficios económicos y lo aplica consistentemente de ejercicio a ejercicio a menos que haya cambios significativos en dicho patrón considerado -NIF 11 párrafo 43 y 48). Ver Nota ...
A70: Los efectos de los ajustes sobre Propiedades, Planta y Equipo de operaciones discontinuadas se exponen formando parte de la línea “Resultados sobre actividades discontinuadas neto de impuesto a la renta” en el Estado de Resultados.
A73: k. Intangibles
A74: Los intangibles se exponen a su costo incurrido menos las correspondientes amortizaciones acumuladas al cierre del año.
A75: Las amortizaciones son calculadas por el método que refleja el patrón de consumo de los beneficios económicos derivados de los intangibles o por el método de línea recta (se explica el método elegido) si el patrón no pudiera ser determinado de forma fiable (NIF 15, párrafo 64). Ver Nota ...
A76: Este rubro incluye costos incurridos por la sociedad relacionados con ingresos futuros.
A79: l. Goodwill N/A
A80: El saldo de esta cuenta representa la diferencia entre el valor pagado y el valor razonable de los activos netos adquiridos por la operación de compra de la subsidiaria – Compañía XX.
A81: A los efectos de la determinación del monto recuperable, anualmente se efectúa una evaluación del mismo sobre la base de los flujos netos descontados. En caso que dichos flujos descontados superen el valor contable se procederá al registro de la correspondiente desvalorización del Goodwill.
A82: Las estimaciones sobre los flujos de fondos netos son realizadas por la Gerencia sobre la base de las mejores estimaciones disponibles al momento de la preparación de los presentes estados financieros. Tal como lo establece la NIF 13 emitida por el Consejo de Contadores Públicos del Paraguay, el Goodwill no se amortiza, sino se afecta a resultados por su deterioro según la NIF 18.
A85: m. Reconocimiento de ingresos y egresos
A86: Los ingresos y egresos son reconocidos en función de su devengamiento.
A89: n. Impuesto a la renta
A90: El impuesto a la renta que se carga a los resultados del año se basa en la utilidad contable antes de este concepto, ajustada por las partidas que la ley incluye o excluye para la determinación de la utilidad gravable a la que se aplica la tasa legal vigente del impuesto y por el reconocimiento del cargo o el ingreso originado por la aplicación del impuesto diferido, si los hubiere.
A92: o. Restricciones a la distribución de utilidades
A93: Deberá mencionarse cualquier tipo de restricción sobre la distribución de utilidades como ser restricciones estatutarias o de entes reguladores y asambleas.
A95: p. Derechos en Fideicomiso
A96: En caso de que la sociedad cuente con Fideicomisos vigentes, deberá exponer claramente en notas a los Estados Financieros, dentro del rubro correspondiente al cual pertenece el bien que ha sido objeto del fideicomiso, ya sea “Créditos/Inventarios u otros activos”, restando al valor del rubro perteneciente, al igual que en la constitución de Fideicomisos de Garantía.
A97: Deberá indicarse además los datos del contrato de fideicomiso, del fiduciario, monto, vencimiento. En caso de emisiones a través de un Patrimonio Autónomo, registradas en la CNV, deberán agregar los datos de registro, destino de los fondos, calificación de riesgo si lo tuviere.
A99: q. Otros principios, prácticas y métodos
A100: Seguidos en general para cuantificar, valuar y exponer los hechos y bienes económicos en los estados financieros y que fueran relevantes para el lector de los mismos.
A101: Obs.: Cambios en políticas contables y su efecto sobre los estados financieros, como así también las modificaciones o ajustes de la información de ejercicios anteriores deben exponerse conforme a lo requerido por la Norma de Información Financiera N° 6 Utilidad o pérdida neta por el período, errores fundamentales y cambios en políticas contables

Sheet Nota 3
A1: =Indice!C1 -> GROW S.A.E.C.A. | E1: BG
A2: Obs.: Revelar situación en el caso de contar con disponibilidad restringida
A7: NOTA 3 - EFECTIVO Y EQUIVALENTE DE EFECTIVO
A8: En miles de guaranies
A9: La composición de la cuenta es la siguiente:
A11: Concepto | C11: =IFERROR(IF(Indice!B6="","2XX2",YEAR(Indice!B6)),"2XX2") -> 2022 | D11: =IFERROR(YEAR(Indice!B6-365),"2XX1") -> 2021
A13: Caja | C13: 23102 | D13: 97615
A14: Recaudaciones a depositar | C14: 34922 | D14: 38955
A15: Bancos Locales - Moneda local Guaraníes | C15: 361509 | D15: 996406
A16: Bancos Locales - Moneda extranjera Dólares | C16: 156164 | D16: 64380
A17: Bancos Locales - Moneda extranjera otros
A18: Bancos en el Extranjero - Moneda extranjera Dólares
A19: (nuevas cuentas a incluir)
A20: Total | C20: =SUM($C$13:C19) -> 575697 | D20: =SUM($D$13:D19) -> 1197356

Sheet Nota 4
A1: =Indice!C1 -> GROW S.A.E.C.A. | D1: BG
A4: NOTA 4 - INVERSIONES TEMPORALES
A6: La composición de la cuenta es la siguiente:
B7: En miles de guaranies
A8: Concepto | B8: =IFERROR(IF(Indice!B6="","2XX2",YEAR(Indice!B6)),"2XX2") -> 2022 | C8: =IFERROR(YEAR(Indice!B6-365),"2XX1") -> 2021
A9: Inversiones en Titulos del Sistema Financiero Local - Moneda Local Guaraníes
A10: Inversiones en Titulos del Sistema Financiero Local - Moneda Extranjera Dólares
A11: Inversiones en Titulos del Sistema Financiero Local - Moneda Extranjera otros
A12: Inversiones en Mercado Bursatil Local - Moneda Local Guaraníes
A13: Inversiones en Mercado Bursatil Local - Moneda Extranjera Dólares
A14: Inversiones en Mercado Bursatil Extranjera - Moneda Extranjera Dólares
A15: Inversiones en Mercado Bursatil Extranjera - Moneda Extranjera otros
A16: Otras inversiones - Moneda Local Guaraníes
A17: Otras inversiones - Moneda Extranjera Dólares
A18: Total | B18: =SUM($B$9:B17) -> 0 | C18: =SUM($C$9:C17) -> 0

Sheet Nota 5
A1: =Indice!C1 -> GROW S.A.E.C.A. | F1: BG
A3: Se indicarán en este rubro todos los créditos a favor de la empresa provenientes de las ventas de Mercaderías y/o servicios (atendiendo a la actividades ordinarias de la empresa), separando las ventas locales en moneda nacional y/o extranjera de las ventas fuera del país en moneda nacional y/o extranjera
A5: NOTA 5 – CUENTAS POR COBRAR COMERCIALES
A6: Las cuentas a cobrar comerciales a corto plazo se integran como sigue:
C7: En miles de guaraníes
C8: =IFERROR(IF(Indice!B6="","2XX2",YEAR(Indice!B6)),"2XX2") -> 2022 | D8: =IFERROR(YEAR(Indice!B6-366),"2XX1") -> 2021 | F8: Composición de la cartera de créditos por ventas | G8: =+Indice!B6 -> 2022-09-30
A9: Deudores por prestamos otorgados | B9: Moneda Local Guaraníes | C9: 5040828 | D9: 9046662 | F9: Situación | G9: Monto | H9: Monto Previsionado | I9: % Previsiones sobre Cartera
A10: Deudores por prestamos otorgados | B10: Moneda Extranjera Dólares | C10: 42859 | D10: 289951 | F10: A Total Cartera no Vencida | G10: =+SUM(C9:C17)+C27+C26 -> 21387956 | J10: =+G10*I10 -> 0
A11: Deudores por Documentos descontado | B11: Moneda Local Guaraníes | C11: 3153493 | D11: 3160797 | F11: B. Total Cartera Vencida | G11: =+SUM(C20:C23) -> 5454499
A12: Deudores por Documentos descontado | B12: Moneda Extranjera Dólares | C12: 191540 | D12: 65930 | F12: Composición Cartera Vencida
A13: Deudores por Venta de bienes adjuducados | B13: Moneda Local Guaraníes | C13: 249002 | D13: 350152 | F13: Normal | G13: 0
A14: Deudores por Venta de bienes adjuducados | B14: Moneda Extranjera Dólares | F14: Vencidos
A15: Deudores por Tarjeta de credito | B15: Moneda Local Guaraníes | C15: 1694415 | D15: 1235373 | F15: Creditos morosos | G15: 3788750
A16: Intereses a cobrar | B16: Moneda Local Guaraníes | C16: 1677318 | D16: 2656444 | F16: En Gestión de Cobro Judicial
A17: Intereses a cobrar | B17: Moneda Extranjera Dólares | C17: 16665 | D17: 28673
A18: Intereses a devengar | B18: Moneda Local Guaraníes | C18: -1364727 | D18: -2044619 | F18: Total de la cartera de créditos (A+B) | G18: =G10+G11 -> 26842455
A19: Intereses a devengar | B19: Moneda Extranjera Dólares | C19: -7951 | D19: -11847
A20: Deudores por prestamos vencidos | B20: Moneda Local Guaraníes | C20: 4377746 | D20: 2768792 | F20: (-) Total Previsiones | G20: =+G15*45% -> 1704937.5
A21: Deudores por prestamos vencidos | B21: Moneda Extranjera otros | C21: 324779 | D21: 331542
A22: Intereses a cobrar vencidos | B22: Moneda Local Guaraníes | C22: 698873 | D22: 511463 | F22: TOTAL NETO DE LA CARTERA DE CRÉDITOS | G22: =G18+G20 -> 28547392.5
A23: Intereses a cobrar vencidos | B23: Moneda Extranjera Dólares | C23: 53101 | D23: 53231 | G23: 0
A24: Intereses a devengar Vencidos | B24: Moneda Local Guaraníes | C24: -136957 | D24: -164505 | F24: Observaciones
A25: Intereses a devengar Vencidos | B25: Moneda Extranjera Dólares | F25: Criterios de Clasificación utilizados | G25: De | I25: A
A26: Deudores varios | B26: Moneda Extranjera Dólares | C26: 8328 | D26: 8529 | F26: Normal | G26: 1 | I26: 60
A27: Deudores por Venta de Lotes | B27: Moneda Local Guaraníes | C27: 9313508 | F27: Vencido | G27: 61 | I27: 90
A28: Otros | B28: Moneda Extranjera Dólares | F28: Moroso en gestion | G28: 91 | I28: 180
A29: Otros | B29: Moneda Extranjera otros
A30: Menos Previsiones | C30: -1704937 | D30: -1535691
A31: Total | C31: =+SUM($C$9:C30) -> 23627883 | D31: =+SUM($D$9:D30) -> 16750877
A34: Las cuentas a cobrar comerciales a largo plazo se integran como sigue:
C35: En miles de guaraníes
C36: =IFERROR(IF(Indice!B6="","2XX2",YEAR(Indice!B6)),"2XX2") -> 2022 | D36: =IFERROR(YEAR(Indice!B6-365),"2XX1") -> 2021
A37: Deudores por ventas locales | B37: Moneda Local Guaraníes
A38: Deudores por ventas locales | B38: Moneda Extranjera Dólares
A39: Deudores por ventas locales | B39: Moneda Extranjera otros
A40: Deudores por ventas en el exterior | B40: Moneda Local Guaraníes
A41: Deudores por ventas en el exterior | B41: Moneda Extranjera Dólares
A42: Deudores por ventas en el exterior | B42: Moneda Extranjera otros
A43: Deudores - Entidad relacionada | B43: Moneda Local Guaraníes
A44: Deudores - Entidad relacionada | B44: Moneda Extranjera Dólares
A45: Deudores - Entidad relacionada | B45: Moneda Extranjera otros
A46: Cheques adelantados recibidos de clientes | B46: Moneda Local Guaraníes
A47: Cheques adelantados recibidos de clientes | B47: Moneda Extranjera Dólares
A48: Cheques adelantados recibidos de clientes | B48: Moneda Extranjera otros
A49: Deudores en gestión judicial | B49: Moneda Local Guaraníes
A50: Deudores en gestión judicial | B50: Moneda Extranjera Dólares
A51: Deudores en gestión judicial | B51: Moneda Extranjera otros
A52: Cheques rechazados | B52: Moneda Local Guaraníes
A53: Cheques rechazados | B53: Moneda Extranjera Dólares
A54: Otros | B54: Moneda Local Guaraníes
A55: Otros | B55: Moneda Extranjera Dólares
A56: Otros | B56: Moneda Extranjera otros
A57: Menos Previsiones
A58: Total | C58: =+SUM($C$37:C57) -> 0 | D58: =+SUM($D$37:D57) -> 0

Sheet Nota 6
A1: =Indice!C1 -> GROW S.A.E.C.A. | D1: BG
A4: NOTA 6 - OTROS CRÉDITOS
A5: En miles de guaranies
A6: El rubro de otros créditos se compone como sigue:
A8: Corrientes | E8: No corrientes
A10: Concepto | B10: =IFERROR(IF(Indice!B6="","2XX2",YEAR(Indice!B6)),"2XX2") -> 2022 | C10: =IFERROR(YEAR(Indice!B6-365),"2XX1") -> 2021 | E10: Concepto | F10: =IFERROR(IF(Indice!B6="","2XX2",YEAR(Indice!B6)),"2XX2") -> 2022 | G10: =IFERROR(YEAR(Indice!B6-365),"2XX1") -> 2021
A11: Anticipos | B11: 429304 | C11: 457293 | E11: Garantía de Alquiler | F11: 13755 | G11: 13954
A12: Gastos pagados por adelantado | B12: =106118+11053-13755 -> 103416 | C12: 15851 | E12: I.V.A. Crédito fiscal
A13: Anticipo Impuesto a la Renta | B13: 149791 | C13: 0 | E13: Anticipos a proveedores
A14: Retención Impuesto a la Renta | E14: (nuevas cuentas a incluir)
A15: Retención Impuesto al Valor agregado | E15: Total | F15: =SUM(F11:F14) -> 13755 | G15: =SUM(G11:G14) -> 13954
A16: (nuevas cuentas a incluir)
A17: Total | B17: =SUM($B$11:B16) -> 682511 | C17: =SUM($C$11:C16) -> 473144

Sheet Nota 7 (hidden)
A1: =Indice!C1 -> GROW S.A.E.C.A. | D1: BG
A4: NOTA 7 – INVENTARIOS
A6: Los bienes de cambio están compuestos de la siguiente manera:
B7: En miles de guaranies
A8: Concepto | B8: =IFERROR(IF(Indice!B6="","2XX2",YEAR(Indice!B6)),"2XX2") -> 2022 | C8: =IFERROR(YEAR(Indice!B6-365),"2XX1") -> 2021
A9: Mercaderías
A10: Productos terminados
A11: Productos en proceso
A12: Materia prima
A13: (nuevas cuentas a incluir)
A14: (-) Previsión para desvalorización y deterioro de inventario
A15: Total | B15: =SUM(B9:B12) -> 0 | C15: =SUM(C9:C12) -> 0

Sheet Nota 8
A1: =Indice!C1 -> GROW S.A.E.C.A. | D1: BG
A4: Nota 8 - INVERSIONES EN ASOCIADAS
A5: En miles de guaraníes
A6: Las inversiones en sociedades donde no se ejerce control se describen a continuación
A7: Periodo | B7: =IFERROR(IF(Indice!B6="","2XX2",YEAR(Indice!B6)),"2XX2") -> 2022 | C7: =IFERROR(YEAR(Indice!B6-366),"2XX1") -> 2021
A8: Total Inversión | B8: 302550 | C8: 68730 | D8: <-- Indicar Monto
A10: a) Datos sobre la sociedad: | G10: a) Datos sobre la inversión:
D11: =IFERROR(IF(Indice!B6="","2XX2",YEAR(Indice!B6)),"2XX2") -> 2022
A12: Nombre de Sociedad | B12: RUC | C12: Cantidad de acciones | D12: Total Patrimonio neto | E12: Total del resultado | G12: Cantidad de acciones | H12: Participación sobre los votos (%) | I12: Total Inversión (miles de Gs) | J12: Participación sobre el Patrimonio Neto (%) | K12: Total valuación patrimonial proporcional | L12: Resultado sobre inversiones
A13: Banco Continental SAECA | B13: 80019270-2 | C13: 74 | D13: 18980 | E13: 0 | G13: 74 | H13: 0.0007 | I13: 11600000 | J13: 7e-06 | K13: =J13*D13 -> 0.13286 | L13: =J13*E13 -> 0
A14: Banco Rio SAECA | B14: 80002227-0 | C14: 318 | D14: 50500 | G14: 318 | H14: 0.0095 | I14: 50500 | K14: =J14*D14 -> 0 | L14: =J14*E14 -> 0
A15: Credipar s.a. | B15: 80054423-4 | C15: 1310 | D15: 233070 | K15: 0 | L15: 0
K16: 0 | L16: 0
K17: 0 | L17: 0
K18: 0 | L18: 0

Sheet Nota 9
A1: =Indice!C1 -> GROW S.A.E.C.A. | L1: BG
A5: Obs.:
A6: Incluir aclaraciones en los siguientes casos:
A7: 1. Cuando los bienes de uso tienen alguna restricción sobre su utilización, como por ejemplo cuando están garantizando obligaciones. En su caso también hacer referencia a la nota correspondiente.
A8: 2. Cuando exista alguna previsión por desvalorización (“deterioro”), detallando la evolución de la misma en el transcurso del año.
A9: 3. Si se están capitalizando intereses al costo de bienes de uso. En su caso deberá aclararse la tasa utilizada para la capitalización.
A10: Ver adicionalmente Norma de Información Financiera N° 11 Propiedades, planta y equipo
A12: NOTA 9 - PROPIEDADES, PLANTA Y EQUIPO - NETO
A13: En miles de guaraníes | J13: -1
B15: Costo histórico revaluado al inicio del año | C15: Adquisiciones | D15: Bajas | E15: Revalúo del año | F15: Valor de origen revaluado al final del año | G15: Depreciación acumulada revaluada al inicio del año | H15: Depreciación del año | I15: Bajas de depreciaciones acumuladas | J15: Revalúo depreciación acumulada del año | K15: Depreciación acumulada revaluada al final del año | L15: Valor neto contable
L16: =IFERROR(IF(Indice!B6="","2XX2",YEAR(Indice!B6)),"2XX2") -> 2022 | M16: =IFERROR(YEAR(Indice!B6-366),"2XX1") -> 2021
A17: Instalaciones | B17: =+M17 -> 56570 | E17: 0 | H17: =3587+1794 -> 5381 | L17: =+B17+C17-D17+E17-H17 -> 51189 | M17: 56570
A18: Rodados | B18: =+M18 -> 53111 | H18: =5058+2529 -> 7587 | L18: =+B18+C18-D18+E18-H18 -> 45524 | M18: 53111
A19: Equipos de computación | B19: 27796 | C19: 0 | E19: 0 | H19: =9431+4715 -> 14146 | L19: 13650 | M19: 27796
A20: Muebles y útiles | B20: 159241 | C20: 181 | E20: 0 | H20: =9511+4755 -> 14266 | L20: 145156 | M20: 159241
A21: Equipos de comunicación | B21: 0 | E21: 0 | L21: 0 | M21: 0
A22: Maquinarias y herramientas | B22: 0 | L22: 0 | M22: 0
A23: Obras en curso | B23: 0 | L23: 0 | M23: 0
A24: Mejoras en propiedad de terceros | B24: 210024 | E24: 0 | H24: =15403+5355+1667+679 -> 23104 | L24: 186920 | M24: 210024
A25: Totales | B25: =+SUM(B17:B24) -> 506742 | C25: 181 | D25: 0 | E25: 0 | F25: 0 | G25: 0 | H25: 64484 | L25: =SUM($L$17:L24) -> 442439 | M25: =SUM($M$17:M24) -> 506742

Sheet Nota 10
A1: =Indice!C1 -> GROW S.A.E.C.A. | C1: BG
A4: NOTA 10 – ACTIVOS DISPONIBLES PARA LA VENTA
B5: En miles de guaranies
B6: =IFERROR(IF(Indice!B6="","2XX2",YEAR(Indice!B6)),"2XX2") -> 2022 | C6: =IFERROR(YEAR(Indice!B6-366),"2XX1") -> 2021
A7: Propiedad, planta y equipo
A8: (Maquinarias) | B8: 49652
A9: Total | B9: =B8 -> 49652 | C9: =C8 -> 0
A11: Activos intangibles
A12: (Detallar activos intangibles)
A13: Total | B13: =B12 -> 0 | C13: =C12 -> 0
A15: Inversiones
A16: Inversiones Inmobiliarias | B16: =485208+758171 -> 1243379 | C16: 2229250
A17: Costo Diferido de inmuebles vendidos | B17: 1350751 | C17: 277117
A18: Total | B18: =B16+B17 -> 2594130 | C18: =C16+C17 -> 2506367
A20: Total general | B20: =B9+B13+B18 -> 2643782 | C20: =C9+C13+C18 -> 2506367

Sheet Nota 11
A1: =Indice!C1 -> GROW S.A.E.C.A. | F1: BG
A4: NOTA 11 – ACTIVOS INTANGIBLES
B5: En miles de guaranies
A6: Activos intangibles | B6: =IFERROR(IF(Indice!B6="","2XX2",YEAR(Indice!B6)),"2XX2") -> 2022 | C6: =IFERROR(YEAR(Indice!B6-366),"2XX1") -> 2021
A7: (Gastos de Constitución ) | B7: 19852 | C7: 19852
A8: Menos amortización acumulada | B8: -19852 | C8: -19852
A10: Total general | B10: =SUM(B7:B9) -> 0 | C10: =SUM(C7:C9) -> 0

Sheet Nota 12 (hidden)
A1: =Indice!C1 -> GROW S.A.E.C.A. | E1: BG
A5: NOTA 12 – GOODWILL
B6: En miles de guaranies
A7: Goodwill | B7: =IFERROR(IF(Indice!B6="","2XX2",YEAR(Indice!B6)),"2XX2") -> 2022 | C7: =IFERROR(YEAR(Indice!B6-366),"2XX1") -> 2021
A11: Total general | B11: =SUM(B8:B10) -> 0 | C11: =SUM(C8:C10) -> 0

Sheet Nota 13
A1: =Indice!C1 -> GROW S.A.E.C.A. | C1: BG
A4: NOTA 13 – CUENTAS POR PAGAR COMERCIALES
A5: En miles de guaranies
A6: Las cuentas por pagar comerciales se componen como sigue:
A8: Corrientes | B8: Simbología según ISO 4217 | C8: Indicación de Moneda | D8: =IFERROR(IF(Indice!B6="","2XX2",YEAR(Indice!B6)),"2XX2") -> 2022 | E8: =IFERROR(YEAR(Indice!B6-366),"2XX1") -> 2021
A9: Proveedores - Entidades Relacionadas | C9: =IFERROR(VLOOKUP(B9,'Base de Monedas'!A:B,2,0),"") -> 
A10: Otros proveedores del exterior | C10: =IFERROR(VLOOKUP(B10,'Base de Monedas'!A:B,2,0),"") -> 
A11: Proveedores locales | C11: =IFERROR(VLOOKUP(B11,'Base de Monedas'!A:B,2,0),"") ->  | D11: 408909 | E11: 592177
A12: (nuevas cuentas a incluir) | C12: =IFERROR(VLOOKUP(B12,'Base de Monedas'!A:B,2,0),"") -> 
A13: Total cuentas a pagar por comerciales | D13: =SUM($D$9:D11) -> 408909 | E13: =SUM($E$9:E11) -> 592177
A17: No Corrientes | B17: Simbología según ISO 4217 | C17: Indicación de Moneda | D17: =IFERROR(YEAR(Indice!B6),"2XX2") -> 2022 | E17: =IFERROR(YEAR(Indice!B6-366),"2XX1") -> 2021
A18: Proveedores - Entidades Relacionadas | C18: =IFERROR(VLOOKUP(B18,'Base de Monedas'!A:B,2,0),"") -> 
A19: Otros proveedores del exterior | C19: =IFERROR(VLOOKUP(B19,'Base de Monedas'!A:B,2,0),"") -> 
A20: Proveedores locales | C20: =IFERROR(VLOOKUP(B20,'Base de Monedas'!A:B,2,0),"") ->  | D20: 27560 | E20: 31719
A21: (nuevas cuentas a incluir) | C21: =IFERROR(VLOOKUP(B21,'Base de Monedas'!A:B,2,0),"") -> 
A22: Total cuentas a pagar por comerciales | D22: =SUM($D$18:D20) -> 27560 | E22: =SUM($E$18:E20) -> 31719

Sheet Nota 14
A1: =Indice!C1 -> GROW S.A.E.C.A. | E1: BG | L1: BG
A4: NOTA 14 – PRESTAMOS A CORTO Y LARGO PLAZO
A6: (a) Equivalentes al tipo de cambio referencial de la fecha de presentacion
A7: (b) Obligaciones garantizadas por valor de guaraníes………..
A9: Corrientes
D10: =IFERROR(IF(Indice!B6="","2XX2",YEAR(Indice!B6)),"2XX2") -> 2022 | J10: =IFERROR(YEAR(Indice!B6-366),"2XX1") -> 2021
A11: Préstamos de Entidades Locales | B11: Vencimiento | C11: Símbolo de Moneda | D11: Moneda | E11: Importe (miles de Gs) | F11: Tipo de Garantía | H11: Vencimiento | I11: Símbolo de Moneda | J11: Moneda | K11: Importe (miles de Gs) | L11: Tipo de Garantía
A12: Financiera CEFISA | B12: 2022-01-28 | C12: PYG | D12: Guaraníes | F12: Codeudoría | H12: 2021-02-21 | I12: PYG | J12: Guaraníes | K12: 1016019 | L12: Codeudoría
A13: Banco RIO S.A.E.C.A. | F13: Codeudoría | H13: 2020-02-27 | I13: PYG | J13: Guaraníes | K13: 1932000 | L13: Codeudoría
A14: FIC Financiera S.A. | D14: =IFERROR(VLOOKUP(C14,'Base de Monedas'!A:B,2,0),"") ->  | K14: 300750
D15: =IFERROR(VLOOKUP(C15,'Base de Monedas'!A:B,2,0),"") ->  | J15: =IFERROR(VLOOKUP(I15,'Base de Monedas'!A:B,2,0),"") ->  | K15: 0
A16: Sobregiros Bancarios | D16: =IFERROR(VLOOKUP(C16,'Base de Monedas'!A:B,2,0),"") ->  | J16: =IFERROR(VLOOKUP(I16,'Base de Monedas'!A:B,2,0),"") -> 
A17: Préstamos de Entidades en el Exterior | D17: =IFERROR(VLOOKUP(C17,'Base de Monedas'!A:B,2,0),"") ->  | J17: =IFERROR(VLOOKUP(I17,'Base de Monedas'!A:B,2,0),"") -> 
A18: Nombre de la entidad financiera | D18: =IFERROR(VLOOKUP(C18,'Base de Monedas'!A:B,2,0),"") ->  | J18: =IFERROR(VLOOKUP(I18,'Base de Monedas'!A:B,2,0),"") -> 
A19: Nombre de la entidad financiera | D19: =IFERROR(VLOOKUP(C19,'Base de Monedas'!A:B,2,0),"") ->  | J19: =IFERROR(VLOOKUP(I19,'Base de Monedas'!A:B,2,0),"") -> 
A20: (incluir otras entidades) | D20: =IFERROR(VLOOKUP(C20,'Base de Monedas'!A:B,2,0),"") ->  | J20: =IFERROR(VLOOKUP(I20,'Base de Monedas'!A:B,2,0),"") -> 
A21: Deudas bursátiles | D21: =IFERROR(VLOOKUP(C21,'Base de Monedas'!A:B,2,0),"") ->  | J21: =IFERROR(VLOOKUP(I21,'Base de Monedas'!A:B,2,0),"") -> 
A22: (Incluir programas de forma individual) | D22: =IFERROR(VLOOKUP(C22,'Base de Monedas'!A:B,2,0),"") ->  | J22: =IFERROR(VLOOKUP(I22,'Base de Monedas'!A:B,2,0),"") -> 
A23: Intereses préstamos entidades financieras a pagar | D23: =IFERROR(VLOOKUP(C23,'Base de Monedas'!A:B,2,0),"") ->  | J23: =IFERROR(VLOOKUP(I23,'Base de Monedas'!A:B,2,0),"") -> 
A24: Intereses a pagar CEFISA | C24: PYG | D24: Guaraní | J24: =IFERROR(VLOOKUP(I24,'Base de Monedas'!A:B,2,0),"") ->  | K24: 20039
A25: Intereses a pagar BANCO RIO | C25: PYG | D25: Guaraní | K25: 135189
A26: Intereses a pagar FIC FINANCIERA | C26: PYG | D26: Guaraní | K26: 108274
A27: (-) Intereses a Devengar CEFISA | C27: PYG | D27: Guaraní | K27: -79940
A28: (-) Intereses a Devengar BANCO RIO | C28: PYG | D28: Guaraní | K28: -64089
A29: (-) Intereses a Devengar FIC FINANCIERA | C29: PYG | D29: Guaraní | I29: PYG | J29: =IFERROR(VLOOKUP(I29,'[1]Base de Monedas'!G:H,2,0),"") ->  | K29: -17139
A30: (-) Intereses a Devengar
A31: Total | D31: =IFERROR(VLOOKUP(C31,'Base de Monedas'!A:B,2,0),"") ->  | E31: =SUM($E$12:E30) -> 0 | K31: =SUM($K$12:K30) -> 3351103
A34: No Corrientes
B35: 20X2 | D35: =IFERROR(YEAR(Indice!B6),"2XX2") -> 2022 | J35: =IFERROR(YEAR(Indice!B6-366),"2XX1") -> 2021
A36: Préstamos de Entidades Locales | B36: Vencimiento | C36: Símbolo de Moneda | D36: Moneda | E36: Importe (miles de Gs) | F36: Tipo de garantía | H36: Vencimiento | I36: Símbolo de Moneda | J36: Moneda | K36: Importe (miles de Gs) | L36: Tipo de Garantía
A37: Banco Itapua S.A. | H37: 2021-04-17
A38: Banco Itapua S.A. | D38: =IFERROR(VLOOKUP(C38,'Base de Monedas'!A:B,2,0),"") ->  | J38: =IFERROR(VLOOKUP(I38,'Base de Monedas'!A:B,2,0),"") -> 
A39: (incluir otras entidades) | D39: =IFERROR(VLOOKUP(C39,'Base de Monedas'!A:B,2,0),"") ->  | J39: =IFERROR(VLOOKUP(I39,'Base de Monedas'!A:B,2,0),"") -> 
A40: Deudas bursátiles | D40: =IFERROR(VLOOKUP(C40,'Base de Monedas'!A:B,2,0),"") ->  | J40: =IFERROR(VLOOKUP(I40,'Base de Monedas'!A:B,2,0),"") -> 
A41: (Incluir programas de forma individual) | D41: =IFERROR(VLOOKUP(C41,'Base de Monedas'!A:B,2,0),"") ->  | J41: =IFERROR(VLOOKUP(I41,'Base de Monedas'!A:B,2,0),"") -> 
A42: Préstamos de Entidades en el Exterior | D42: =IFERROR(VLOOKUP(C42,'Base de Monedas'!A:B,2,0),"") ->  | J42: =IFERROR(VLOOKUP(I42,'Base de Monedas'!A:B,2,0),"") -> 
A43: Nombre de la entidad financiera | D43: =IFERROR(VLOOKUP(C43,'Base de Monedas'!A:B,2,0),"") ->  | J43: =IFERROR(VLOOKUP(I43,'Base de Monedas'!A:B,2,0),"") -> 
A44: Nombre de la entidad financiera | D44: =IFERROR(VLOOKUP(C44,'Base de Monedas'!A:B,2,0),"") ->  | J44: =IFERROR(VLOOKUP(I44,'Base de Monedas'!A:B,2,0),"") -> 
A45: (incluir otras entidades) | D45: =IFERROR(VLOOKUP(C45,'Base de Monedas'!A:B,2,0),"") ->  | J45: =IFERROR(VLOOKUP(I45,'Base de Monedas'!A:B,2,0),"") -> 
A46: Deudas bursátiles | D46: =IFERROR(VLOOKUP(C46,'Base de Monedas'!A:B,2,0),"") ->  | J46: =IFERROR(VLOOKUP(I46,'Base de Monedas'!A:B,2,0),"") -> 
A47: (Incluir programas de forma individual) | D47: =IFERROR(VLOOKUP(C47,'Base de Monedas'!A:B,2,0),"") ->  | J47: =IFERROR(VLOOKUP(I47,'Base de Monedas'!A:B,2,0),"") -> 
A48: Intereses préstamos entidades financieras a pagar | D48: =IFERROR(VLOOKUP(C48,'Base de Monedas'!A:B,2,0),"") ->  | J48: =IFERROR(VLOOKUP(I48,'Base de Monedas'!A:B,2,0),"") -> 
A49: Intereses a pagar | D49: =IFERROR(VLOOKUP(C49,'Base de Monedas'!A:B,2,0),"") ->  | J49: =IFERROR(VLOOKUP(I49,'Base de Monedas'!A:B,2,0),"") ->  | K49: 0
A50: (-) Intereses a Devengar
A51: Intereses deudas bursátiles a pagar | D51: =IFERROR(VLOOKUP(C51,'Base de Monedas'!A:B,2,0),"") ->  | J51: =IFERROR(VLOOKUP(I51,'Base de Monedas'!A:B,2,0),"") -> 
A52: Intereses a pagar | J52: =IFERROR(VLOOKUP(I52,'[1]Base de Monedas'!G:H,2,0),"") ->  | K52: 0 | L52: Codeudoria
A53: (-) Intereses a Devengar | D53: =IFERROR(VLOOKUP(C53,'Base de Monedas'!A:B,2,0),"") -> 
A54: Total | D54: =IFERROR(VLOOKUP(C54,'Base de Monedas'!A:B,2,0),"") ->  | E54: =SUM($E$37:E53) -> 0 | J54: =IFERROR(VLOOKUP(I54,'Base de Monedas'!A:B,2,0),"") ->  | K54: =SUM($K$37:K53) -> 0
J55: =IFERROR(VLOOKUP(I55,'Base de Monedas'!H:I,2,0),"") -> 

Sheet Nota 15 (hidden)
A1: =Indice!C1 -> GROW S.A.E.C.A. | D1: BG
A5: NOTA 15 – PORCION CORRIENTE DE LA DEUDA A LARGO PLAZO
B7: En miles de guaranies
A8: Porción corriente de la deuda a largo plazo | B8: =IFERROR(IF(Indice!B6="","2XX2",YEAR(Indice!B6)),"2XX2") -> 2022 | C8: =IFERROR(YEAR(Indice!B6-366),"2XX1") -> 2021
A9: Cuentas por pagar comerciales | C9: 0
A10: Préstamos bancarios | B10: 0 | C10: 0
A11: Bonos bursátiles | C11: 0
A12: Intereses bancarios a pagar | B12: 0 | C12: 0
A13: Intereses bursatiles a pagar
A14: (nuevas cuentas a incluir)
A15: Total general | B15: =SUM($B$9:B14) -> 0 | C15: =SUM($C$9:C14) -> 0

Sheet Nota 16
A1: =Indice!C1 -> GROW S.A.E.C.A. | F1: BG
A4: NOTA 16 – REMUNERACIONES Y CARGAS SOCIALES A PAGAR
B6: En miles de guaranies
A7: Remuneraciones y cargas sociales a pagar | B7: =IFERROR(IF(Indice!B6="","2XX2",YEAR(Indice!B6)),"2XX2") -> 2022 | C7: =IFERROR(YEAR(Indice!B6-366),"2XX1") -> 2021
A8: Sueldo y otras remuneraciones a pagar | B8: 24152 | C8: 0
A9: Aportes y retenciones a pagar | B9: 8454 | C9: 8173
A10: Remuneraciones al personal superior a pagar
A11: (Indicar otras cuentas)
A12: Total | B12: =SUM($B$8:B11) -> 32606 | C12: =SUM($C$8:C11) -> 8173

Sheet Nota 17
A1: =Indice!C1 -> GROW S.A.E.C.A. | G1: BG
A5: NOTA 17 – IMPUESTOS A PAGAR
B7: En miles de guaranies
A8: Impuestos a pagar | B8: =IFERROR(IF(Indice!B6="","2XX2",YEAR(Indice!B6)),"2XX2") -> 2022 | C8: =IFERROR(YEAR(Indice!B6-366),"2XX1") -> 2021
A9: Impuesto a la renta a pagar | B9: 150832 | C9: 1160
A10: Impuesto al Valor Agregado a pagar | B10: 19825 | C10: 34521
A11: Retención IDU a pagar
A12: IVA a facturar | B12: 138783 | C12: 4679
A13: Total | B13: =SUM($B$9:B12) -> 309440 | C13: =SUM($C$9:C12) -> 40360

Sheet Nota 18 (hidden)
A1: =Indice!C1 -> GROW S.A.E.C.A. | D1: BG
A4: NOTA 18 - PROVISIONES
B6: En miles de guaranies
A7: Provisiones | B7: =IFERROR(IF(Indice!B6="","2XX2",YEAR(Indice!B6)),"2XX2") -> 2022 | C7: =IFERROR(YEAR(Indice!B6-366),"2XX1") -> 2021
A9: Alquileres a Pagar
A10: Servicios Basicos a Pagar
A11: Honorarios Profesionales a Pagar
A12: (Indicar cuentas)
A13: Total | B13: =SUM($B$9:B12) -> 0 | C13: =SUM($C$9:C12) -> 0

Sheet Nota 19
A1: =Indice!C1 -> GROW S.A.E.C.A. | D1: BG
A3: NOTA 19 – OTROS PASIVOS CORRIENTES y NO CORRIENTES
A4: En miles de guaranies
A6: Corrientes | B6: =IFERROR(IF(Indice!B6="","2XX2",YEAR(Indice!B6)),"2XX2") -> 2022 | C6: =IFERROR(YEAR(Indice!B6-366),"2XX1") -> 2021 | E6: No Corrientes | F6: =IFERROR(IF(Indice!B6="","2XX2",YEAR(Indice!B6)),"2XX2") -> 2022 | G6: =IFERROR(YEAR(Indice!B6-365),"2XX1") -> 2021
A7: Retencion de IVA a pagar | E7: Retencion de IVA a pagar
A8: Retencion Impuesto a la renta a Pagar | E8: Retencion Impuesto a la renta a Pagar
A9: Impuestos diferidos | E9: Impuestos diferidos
A10: Otros ingresos diferidos (detallar cuenta) | E10: Otros ingresos diferidos | F10: 9343203 | G10: 315321
A11: Otros Pasivos con Entidades relacionadas | E11: Otros Pasivos con Entidades relacionadas
A12: Previsiones para contingencias/Indemnizaciones y despidos | E12: Previsiones para contingencias/Indemnizaciones y despidos
A13: (nuevas cuentas a incluir) | E13: (nuevas cuentas a incluir)
A14: Total | B14: =SUM(B8:B13) -> 0 | C14: =SUM(C8:C13) -> 0 | E14: Total | F14: =SUM(F8:F13) -> 9343203 | G14: =SUM(G8:G13) -> 315321

Sheet Nota 20
A1: =Indice!C1 -> GROW S.A.E.C.A. | D1: BG
A4: NOTA 20 – CAPITAL INTEGRADO
A6: Fecha | B6: =IFERROR(IF(Indice!B6="","2XX2",YEAR(Indice!B6)),"2XX2") -> 2022 | C6: =IFERROR(YEAR(Indice!B6-366),"2XX1") -> 2021
A7: Monto Capital Social | B7: 20000000 | C7: 10000000
A8: Monto Capital Integrado | B8: 13936100 | C8: 10000000
A9: Cantidad de Acciones | B9: =+B8/B10 -> 139361 | C9: =+C8/C10 -> 100000
A10: Valor Nominal de Acciones | B10: 100 | C10: 100
A11: Total | B11: =+B8 -> 13936100 | C11: =+C8 -> 10000000

Sheet Nota 21
A1: =Indice!C1 -> GROW S.A.E.C.A. | F1: BG
A4: NOTA 21 – RESERVAS
B6: En miles de guaranies
B7: =IFERROR(IF(Indice!B6="","2XX2",YEAR(Indice!B6)),"2XX2") -> 2022 | C7: =IFERROR(YEAR(Indice!B6-366),"2XX1") -> 2021
A8: a Reserva de revalúo | B8: 35270 | C8: 35270
A12: b Reserva legal | B12: 483409 | C12: 417517
C13: 0
A16: c Reservas Facultativa
A20: d Reservas facultativas | B20: =+SUM($B$21:B26) -> 2460172 | C20: =+SUM($C$21:C26) -> 3961686
A21: d.1. (Aporte para futura integración ) | B21: =67186+325900 -> 393086 | C21: 2550766
A22: d.2. (Prima por venta de acciones) | B22: 1796186 | C22: 1140020
A23: d.3. (Reserva Facultativa) | B23: 270900 | C23: 270900

Sheet Nota 22 (hidden)
A1: =Indice!C1 -> GROW S.A.E.C.A. | F1: BG
A4: NOTA 21 – DIFERENCIA TRANSITORIA POR CONVERSION
B6: En miles de guaranies
B7: =IFERROR(IF(Indice!B6="","2XX2",YEAR(Indice!B6)),"2XX2") -> 2022 | C7: =+IFERROR(YEAR(Indice!B6-365),"2XX1") -> 2021
A8: Diferencia transitoria por conversión

Sheet Nota 23
A1: =Indice!C1 -> GROW S.A.E.C.A. | F1: BG
A4: NOTA 23 – RESULTADOS ACUMULADOS
B6: En miles de guaranies
B7: =IFERROR(IF(Indice!B6="","2XX2",YEAR(Indice!B6)),"2XX2") -> 2022 | C7: =+IFERROR(YEAR(Indice!B6-366),"2XX1") -> 2021
A8: Resultado de ejercicios anteriores | B8: 0 | C8: 1056227
A9: Resultado del ejercicio actual | B9: 1251948 | C9: 1707617
A10: Totales | B10: =SUM($B$8:B9) -> 1251948 | C10: =SUM($C$8:C9) -> 2763844

Sheet Nota 24 (hidden)
A1: =Indice!C1 -> GROW S.A.E.C.A. | F1: BG
A4: NOTA 24 – INTERES MINORITARIO
B6: En miles de guaranies
B7: =IFERROR(IF(Indice!B6="","2XX2",YEAR(Indice!B6)),"2XX2") -> 2022 | C7: =+IFERROR(YEAR(Indice!B6-365),"2XX1") -> 2021
A8: Interes Minoritario

Sheet Nota 25
A1: =Indice!C1 -> GROW S.A.E.C.A. | E1: ER
A5: NOTA 25 – VENTAS
B8: En miles de guaranies
B9: =IFERROR(IF(Indice!B6="","2XX2",YEAR(Indice!B6)),"2XX2") -> 2022 | C9: =+IFERROR(YEAR(Indice!B6-366),"2XX1") -> 2021
A10: Ventas
A11: Casa de Credito - Productos financieros
A12: Local
A13: Productos por operaciones de crédito | B13: 2302601 | C13: 2133847
A14: Ingresos por gastos Administrativos | B14: =375021+25601 -> 400622 | C14: 425861
A15: Ingresos por Tarjetas de Crédito | B15: 410049.714 | C15: 240305
A16: Ingreso por venta de Bienes Adjudicados | B16: 177053.205 | C16: 96600
A17: Desafectación por previsiones | B17: 1564955.266 | C17: 665659
A18: Comisiones cobradas | B18: 96039
A19: Intereses moratorios y punitorios | B19: 390250
A20: Otros recargos
A21: Otros | B21: =5611+1085 -> 6696 | C21: 597168
A22: Ventas linea Inmobiliaria
A23: Local
A24: Contado
A25: Crédito | B25: 362640
A26: Exterior
A27: Contado
A28: Crédito
A29: (nuevas lineas de negocio a incluir)
A30: Total | B30: =SUM($B$11:B28) -> 5710906.185 | C30: =SUM($C$11:C28) -> 4159440

Sheet Nota 26
A1: =Indice!C1 -> GROW S.A.E.C.A. | E1: ER
A5: NOTA 26 - COSTO DE VENTAS
B8: Miles de guaraníes
A9: Costo de ventas | B9: =IFERROR(IF(Indice!B6="","2XX2",YEAR(Indice!B6)),"2XX2") -> 2022 | C9: =+IFERROR(YEAR(Indice!B6-366),"2XX1") -> 2021
A10: Linea de negocio 1
A11: Existencia inicial del inventario | B11: 214363 | C11: 83763
A12: + Compra de bienes y servicios
A13: + Costo de producción
A14: - Existencia final de inventario
A15: Linea de negocio 2
A16: Existencia inicial del inventario
A17: + Compra de bienes y servicios
A18: + Costo de producción
A19: - Existencia final de inventario
A20: (nuevas lineas de negocio a incluir)
A21: Total costo de ventas | B21: =SUM($B$10:B20) -> 214363 | C21: =SUM($C$10:C20) -> 83763

Sheet Nota 27
A1: =Indice!C1 -> GROW S.A.E.C.A. | G1: ER
A5: NOTA 27 - GASTOS
A6: (Esta nota deberá ser incluida cuando en el estado de resultados se haga mención a una cuenta de carácter general o cuyo nombre no permita una adecuada identificación de la naturaleza del gasto y su importe sea significativo)
A8: El rubro está compuesto de la siguiente forma:
A10: Miles de guaraníes
C11: =IFERROR(IF(Indice!B6="","2XX2",YEAR(Indice!B6)),"2XX2") -> 2022 | F11: =+IFERROR(YEAR(Indice!B6-366),"2XX1") -> 2021
B12: Gastos de Ventas | C12: Gastos Administrativos | D12: Total | E12: Gastos de Ventas | F12: Gastos Administrativos | G12: Total
A13: Movilidad y viáticos | C13: 45877 | D13: =+C13+B13 -> 45877 | G13: =+F13+E13 -> 0
A14: Gastos de alquiler | C14: 202792 | D14: =+C14+B14 -> 202792 | F14: 207245 | G14: =+F14+E14 -> 207245
A15: Computación y redes | C15: 29600 | D15: =+C15+B15 -> 29600 | G15: =+F15+E15 -> 0
A16: Gastos por servicios | B16: 89371 | D16: 89371 | E16: 126596 | F16: 39630 | G16: 166226
A17: Honorarios profesionales y asesoramiento | C17: 147632 | D17: 147632 | F17: 90014 | G17: 90014
A18: Otros gastos de Administración | C18: 285129 | D18: 285129 | F18: 314506 | G18: 314506
A19: Impuestos y tasas | C19: 63191 | D19: 63191 | F19: 23466 | G19: 23466
A20: Gastos de reparación y mantenimiento | C20: 323454 | D20: 323454 | F20: 289341 | G20: 289341
A21: Gastos del personal y capacitación | C21: 8100 | D21: 8100 | G21: 0
A22: Seguros pagados | C22: 11352 | D22: 11352 | F22: 9936 | G22: 9936
A23: Comisiones Pagadas | B23: 113467 | D23: 113467 | G23: 0
A24: Remuneraciones de administradores, directores, síndicos y consejo de vigilancia | C24: 278909 | D24: 278909 | F24: 256818 | G24: 256818
A25: Sueldos y Jornales | C25: 318552 | D25: 318552 | F25: 276401 | G25: 276401
A26: Contribuciones Sociales | C26: 48576 | D26: 48576 | F26: 42081 | G26: 42081
A27: Regalías y Honorarios por servicios técnicos | D27: 0 | G27: 0
A28: Gastos de Publicidad y Propaganda | B28: 68204 | D28: 68204 | E28: 37977 | F28: 145327 | G28: 183304
A29: Intereses, multas y recargos impositivos | D29: 0 | G29: 0
A30: Intereses a bancos e instituciones financieras | C30: 164506 | D30: 164506 | G30: 0
A31: Depreciación bienes de uso | C31: 64482 | D31: 64482 | F31: 40208 | G31: 40208
A32: Amortización activos intangibles | D32: 0 | G32: 0
A33: Previsiones | C33: 1784112 | D33: 1784112 | F33: 693399 | G33: 693399
A34: Servicios Básicos | C34: 46457 | D34: 46457 | F34: 39658 | G34: 39658
A35: Total | B35: =+SUM($B$13:B34) -> 271042 | C35: =+SUM($C$13:C34) -> 3822721 | D35: =+SUM($D$13:D34) -> 4093763 | E35: =+SUM($E$13:E34) -> 164573 | F35: =+SUM($F$13:F34) -> 2468030 | G35: =+SUM($G$13:G34) -> 2632603
D37: =+'Nota 26'!B21 -> 214363
D38: =+'Nota 32'!B8 -> 150832
D39: =+D35+D37+D38 -> 4458958
F42: =+F41-E35-F35 -> -2632603

Sheet Nota 28 (hidden)
A1: =Indice!C1 -> GROW S.A.E.C.A. | E1: ER
A4: Nota 28 - Otros Ingresos y gastos operativos
A6: Miles de guaraníes
A8: Otros ingresos | B8: =IFERROR(IF(Indice!B6="","2XX2",YEAR(Indice!B6)),"2XX2") -> 2022 | C8: =+IFERROR(YEAR(Indice!B6-365),"2XX1") -> 2021 | E8: Otros gastos | F8: =IFERROR(IF(Indice!B6="","2XX2",YEAR(Indice!B6)),"2XX2") -> 2022 | G8: =+IFERROR(YEAR(Indice!B6-365),"2XX1") -> 2021
A9: (Detallar cuenta) | E9: (Detallar cuenta)
A16: Total | B16: =SUM($B$9:B15) -> 0 | C16: =SUM($C$9:C15) -> 0 | E16: Total | F16: =SUM($F$9:F15) -> 0 | G16: =SUM($G$9:G15) -> 0

Sheet Nota 29 (hidden)
A1: =Indice!C1 -> GROW S.A.E.C.A. | E1: ER
A5: NOTA 29 - INGRESOS Y GASTOS FINANCIEROS NETOS
A6: Miles de guaraníes
A8: Ingresos Financieros netos | B8: =IFERROR(IF(Indice!B6="","2XX2",YEAR(Indice!B6)),"2XX2") -> 2022 | C8: =+IFERROR(YEAR(Indice!B6-365),"2XX1") -> 2021 | E8: Gastos Financieros netos | F8: =IFERROR(IF(Indice!B6="","2XX2",YEAR(Indice!B6)),"2XX2") -> 2022 | G8: =+IFERROR(YEAR(Indice!B6-365),"2XX1") -> 2021
A9: (Detallar cuentas) | E9: (Detallar cuentas)
A14: Total ingresos financieros | B14: =SUM($B9:B13) -> 0 | C14: =SUM($C9:C13) -> 0 | E14: Total gastos financieros | F14: =SUM($F9:F13) -> 0 | G14: =SUM($G9:G13) -> 0

Sheet Nota 30 (hidden)
A1: =Indice!C1 -> GROW S.A.E.C.A. | E1: ER
A4: Nota 34 - Resultado de inversiones en asociadas
A5: Miles de guaraníes
A8: Resultado de inversiones en asociadas | B8: =IFERROR(IF(Indice!B6="","2XX2",YEAR(Indice!B6)),"2XX2") -> 2022 | C8: =+IFERROR(YEAR(Indice!B6-365),"2XX1") -> 2021
A9: (Detallar cuenta)
A16: Total | B16: =SUM($B9:B15) -> 0 | C16: =SUM($C9:C15) -> 0

Sheet Nota 31 (hidden)
A1: =Indice!C1 -> GROW S.A.E.C.A. | E1: ER
A4: Nota 31 - Resultado participación minoritaria
A5: Miles de guaraníes
A8: Resultado participación minoritaria | B8: =IFERROR(IF(Indice!B6="","2XX2",YEAR(Indice!B6)),"2XX2") -> 2022 | C8: =+IFERROR(YEAR(Indice!B6-365),"2XX1") -> 2021
A9: (Detallar cuenta)
A16: Total | B16: =SUM($B9:B15) -> 0 | C16: =SUM($C9:C15) -> 0

Sheet Nota 32
A1: =Indice!C1 -> GROW S.A.E.C.A. | E1: ER
A4: Nota 32 - IMPUESTO A LA RENTA
A5: En miles de guaraníes
B7: =IFERROR(IF(Indice!B6="","2XX2",YEAR(Indice!B6)),"2XX2") -> 2022 | C7: =+IFERROR(YEAR(Indice!B6-366),"2XX1") -> 2021
A8: Impuesto a la renta | B8: 150832 | C8: 150160
A14: Total | B14: =SUM($B8:B13) -> 150832 | C14: =SUM($C8:C13) -> 150160

Sheet Nota 33 (hidden)
A1: =Indice!C1 -> GROW S.A.E.C.A. | E1: ER
A4: Nota 33 - Resultado extraordinario neto de impuesto a la renta
A5: En miles de guaraníes
B7: =IFERROR(IF(Indice!B6="","2XX2",YEAR(Indice!B6)),"2XX2") -> 2022 | C7: =+IFERROR(YEAR(Indice!B6-365),"2XX1") -> 2021
A8: Conceptos
A9: (Detallar)
A15: Total | B15: =SUM($B8:B14) -> 0 | C15: =SUM($C8:C14) -> 0

Sheet Nota 34 (hidden)
A1: =Indice!C1 -> GROW S.A.E.C.A. | E1: ER
A4: Nota 34 - Resultado sobre actividades discontinuadas neto de impuesto a la renta
A5: En miles de guaraníes
A7: Resultado sobre actividades discontinuadas neto de impuesto a la renta | B7: =IFERROR(IF(Indice!B6="","2XX2",YEAR(Indice!B6)),"2XX2") -> 2022 | C7: =+IFERROR(YEAR(Indice!B6-365),"2XX1") -> 2021
A9: (nueva cuenta a incluir)
A10: Subtotal
A11: - Impuesto a la renta
A12: Total | B12: =SUM($B8:B11) -> 0 | C12: =SUM($C8:C11) -> 0

Sheet Nota 35
A1: =Indice!C1 -> GROW S.A.E.C.A. | E1: ER
A4: NOTA 35- UTILIDAD (PÉRDIDA) NETA DEL AÑO Y POR ACCION ORDINARIA
A5: La Sociedad calcula la utilidad (pérdida) neta por acción sobre la base de la utilidad (pérdida) del año y … acciones ordinarias (aclarar las características de las acciones) de valor nominal G/ …cada una con derecho a … voto por acción (aclarar el derecho de voto que tiene cada tipo de acción).
B7: =IFERROR(IF(Indice!B6="","2XX2",YEAR(Indice!B6)),"2XX2") -> 2022 | C7: =+IFERROR(YEAR(Indice!B6-366),"2XX1") -> 2021
A8: Cantidad de Acciones Ordinarias en Circulación | B8: =+'Nota 20'!B9 -> 139361 | C8: =+'Nota 20'!C9 -> 100000
A9: Utilidad Neta | B9: =ER!C31 -> 1251948.185 | C9: =ER!D31 -> 1292914
A10: Utilidad Neta por Acción Ordinaria | B10: =IFERROR(B9/B8,0) -> 8.983490252 | C10: =IFERROR(C9/C8,0) -> 12.92914

Sheet Nota 36 (hidden)
A1: =Indice!C1 -> GROW S.A.E.C.A. | E1: Indice
A4: NOTA 36 - ACTIVOS GRAVADOS
A6: Los siguientes bienes de propiedad de la Sociedad han sido hipotecados y prendados en garantía de obligaciones financieras.
A8: =IFERROR("Al "&DAY(Indice!B6)&" de "&VLOOKUP(MONTH(Indice!B6),Indice!S:T,2,0)&" de "&YEAR(Indice!B6-365),"Al dia... de mes… de año 2XX1…") -> Al 30 de Septiembre de 2021
A9: Tipo de Activo | B9: Datos del activo gravado | C9: Tipo de garantía | D9: Importe (indicar moneda) | E9: A favor de
A15: =IFERROR("Al "&DAY(Indice!B6)&" de "&VLOOKUP(MONTH(Indice!B6),Indice!S:T,2,0)&" de "&YEAR(Indice!B6-1),"Al dia... de mes… de año 2XX2…") -> Al 30 de Septiembre de 2022
A16: Tipo de Activo | B16: Datos del activo gravado | C16: Tipo de garantía | D16: Importe (indicar moneda) | E16: A favor de

Sheet Nota 37 (hidden)
A1: =Indice!C1 -> GROW S.A.E.C.A. | E1: Indice
A4: NOTA 37 - CONTINGENCIAS Y COMPROMISOS
A5: (Esta nota debería incluir un breve detalle de contratos con terceros, vigente a la fecha de cierre del ejercicio, cuyo incumplimiento o cláusula específica podrían generar obligaciones contingentes para el cliente).
A6: =IFERROR("Los principales contratos suscriptos por la Sociedad, vigentes al "&DAY(Indice!B6)&" de "&VLOOKUP(MONTH(Indice!B6),Indice!S:T,2,0)&" de "&YEAR(Indice!B6-1)&" son:","Los principales contratos suscriptos por la Sociedad, vigentes al … de … 20X2 son:") -> Los principales contratos suscriptos por la Sociedad, vigentes al 30 de Septiembre de 2022 son:
A7: a)
A8: b)
A11: =IFERROR("Al "&DAY(Indice!B6)&" de "&VLOOKUP(MONTH(Indice!B6),Indice!S:T,2,0)&" de "&YEAR(Indice!B6-1)&" no existen situaciones contingentes, ni reclamos que pudieran resultar en la generación de obligaciones para la Sociedad adicionales a las que se presentan en estos estados financieros.","Al … de …………... 20X2 no existen situaciones contingentes, ni reclamos que pudieran resultar en la generación de obligaciones para la Sociedad adicionales a las que se presentan en estos estados financieros.") -> Al 30 de Septiembre de 2022 no existen situaciones contingentes, ni reclamos que pudieran resultar en la generación de obligaciones para la Sociedad adicionales a las que se presentan en estos estados financieros.
A15: Obs.: Esta información debe estar ajustada a lo requerido por la Norma de Información Financiera N° 5 Contingencias y sucesos que ocurren después de la fecha del balance.

Sheet Nota 38 (hidden)
A1: =Indice!C1 -> GROW S.A.E.C.A. | D1: Índice
A4: NOTA 38 - IMPUESTO DIFERIDO
A5: En miles de guaraníes
A6: Al … de …........... 20X2 la Sociedad constituyó una provisión para impuesto a la renta de Guaraníes …... (Al … de …...............20X1: Guaraníes …....) / (La Sociedad no ha constituido provisión para impuesto a la renta, debido a que a esa fecha la misma generó renta imponible que fue compensada con quebrantos impositivos acumulados a esa fecha).
A7: La Sociedad contabiliza el impuesto a la renta por el método de lo diferido, método del pasivo. El mencionado método establece la determinación de activos o pasivos impositivos diferidos netos basados en las diferencias temporales y temporarias, con cargo a la línea Impuesto a la renta del Estado de resultados.
A9: El siguiente cuadro detalla las diferencias temporales a la tasa del impuesto a los efectos de determinación del impuesto diferido:
B11: =IFERROR(IF(Indice!B6="","2XX2",YEAR(Indice!B6)),"2XX2") -> 2022 | C11: =+IFERROR(YEAR(Indice!B6-365),"2XX1") -> 2021
A12: Activos y pasivos impositivos diferidos:
A13: Caja y Bancos
A14: Inversiones
A15: Previsión para deudores incobrables
A16: Bienes de uso
A17: Activos intangibles
A18: Previsión del pasivo
A19: Deudas comerciales y bancarias
A20: Bienes de cambio
A21: Sub - total
A22: Previsión para impuestos diferidos netos
A23: Total activo/pasivo impositivo diferido neto antes de quebrantos
A24: Quebranto impositivo
A25: Total

Sheet Nota 39 (hidden)
A1: =Indice!C1 -> GROW S.A.E.C.A. | E1: Indice
A5: NOTA 39 - HECHOS POSTERIORES
A6: (En caso en que entre la fecha del cierre del ejercicio y la fecha de emisión de los estados financieros existan hechos posteriores significativos deberá evaluarse el tipo de hecho posterior del que se trate y modificar esta nota según corresponda).
A9: Entre la fecha de cierre del ejercicio y la fecha de preparación de estos estados financieros, no han ocurrido hechos significativos de carácter financiero o de otra índole que afecten la situación patrimonial o financiera o los resultados de la Sociedad al … de …..................20X2.

Sheet Nota 40 (hidden)
A1: =Indice!C1 -> GROW S.A.E.C.A. | C1: Indice
A5: NOTA 40 - SALDOS Y TRANSACCIONES CON PARTES RELACIONADAS
A6: Miles de guaraníes
B10: =IFERROR(IF(Indice!B6="","2XX2",YEAR(Indice!B6)),"2XX2") -> 2022 | C10: =+IFERROR(YEAR(Indice!B6-365),"2XX1") -> 2021
A11: ACTIVO
A12: Inversiones temporales
A13: Cuentas a cobrar comerciales
A14: Otros créditos
A15: Total activo
A16: PASIVO
A17: Cuentas por pagar comerciales
A18: Préstamos a corto plazo
A19: Provisiones
A20: Préstamos a largo plazo
A21: Otros pasivos
A22: Total pasivo
B26: =IFERROR(IF(Indice!B6="","2XX2",YEAR(Indice!B6)),"2XX2") -> 2022 | C26: =+IFERROR(YEAR(Indice!B6-365),"2XX1") -> 2021
A27: Costo de ventas
A28: Compras a ….
A30: Gastos administrativos
A31: Honorarios por servicios
A32: Otros
A33: Gastos financieros
A34: Intereses pagados por préstamos

Sheet Base de Monedas
A1: PYG | B1: Guaraní | C1: Índice
A2: USD | B2: Dólar estadounidense
A3: EUR | B3: Euro
A4: AED | B4: Dírham de los Emiratos Árabes Unidos
A5: AFN | B5: Afgani
A6: ALL | B6: Lek
A7: AMD | B7: Dram armenio
A8: ANG | B8: Florín antillano neerlandés
A9: AOA | B9: Kwanza
A10: ARS | B10: Peso argentino
A11: AUD | B11: Dólar australiano
A12: AWG | B12: Florín arubeño
A13: AZN | B13: Manat azerbaiyano
A14: BAM | B14: Marco convertible
A15: BBD | B15: Dólar de Barbados
A16: BDT | B16: Taka
A17: BGN | B17: Lev búlgaro
A18: BHD | B18: Dinar bareiní
A19: BIF | B19: Franco de Burundi
A20: BMD | B20: Dólar bermudeño
A21: BND | B21: Dólar de Brunéi
A22: BOB | B22: Boliviano
A23: BOV | B23: MVDOL
A24: BRL | B24: Real brasileño
A25: BSD | B25: Dólar bahameño
A26: BTN | B26: Ngultrum
A27: BWP | B27: Pula
A28: BYN | B28: Rublo bielorruso
A29: BZD | B29: Dólar beliceño
A30: CAD | B30: Dólar canadiense
A31: CDF | B31: Franco congoleño
A32: CHE | B32: Euro WIR
A33: CHF | B33: Franco suizo
A34: CHW | B34: Franco WIR
A35: CLF | B35: Unidad de fomento
A36: CLP | B36: Peso chileno
A37: CNY | B37: Yuan chino
A38: COP | B38: Peso colombiano
A39: COU | B39: Unidad de valor real
A40: CRC | B40: Colón costarricense
A41: CUC | B41: Peso convertible
A42: CUP | B42: Peso cubano
A43: CVE | B43: Escudo caboverdiano
A44: CZK | B44: Corona checa
A45: DJF | B45: Franco yibutiano
A46: DKK | B46: Corona danesa
A47: DOP | B47: Peso dominicano
A48: DZD | B48: Dinar argelino
A49: EGP | B49: Libra egipcia
A50: ERN | B50: Nakfa
A51: ETB | B51: Birr etíope
A52: FJD | B52: Dólar fiyiano
A53: FKP | B53: Libra malvinense
A54: GBP | B54: Libra esterlina
A55: GEL | B55: Lari
A56: GHS | B56: Cedi ghanés
A57: GIP | B57: Libra de Gibraltar
A58: GMD | B58: Dalasi
A59: GNF | B59: Franco guineano
A60: GTQ | B60: Quetzal
A61: GYD | B61: Dólar guyanés
A62: HKD | B62: Dólar de Hong Kong
A63: HNL | B63: Lempira
A64: HRK | B64: Kuna
A65: HTG | B65: Gourde
A66: HUF | B66: Forinto
A67: IDR | B67: Rupia indonesia
A68: ILS | B68: Nuevo shéquel israelí
A69: INR | B69: Rupia india
A70: IQD | B70: Dinar iraquí
A71: IRR | B71: Rial iraní
A72: ISK | B72: Corona islandesa
A73: JMD | B73: Dólar jamaiquino
A74: JOD | B74: Dinar jordano
A75: JPY | B75: Yen
A76: KES | B76: Chelín keniano
A77: KGS | B77: Som
A78: KHR | B78: Riel
A79: KMF | B79: Franco comorense
A80: KPW | B80: Won norcoreano
A81: KRW | B81: Won
A82: KWD | B82: Dinar kuwaití
A83: KYD | B83: Dólar de las Islas Caimán
A84: KZT | B84: Tenge
A85: LAK | B85: Kip
A86: LBP | B86: Libra libanesa
A87: LKR | B87: Rupia de Sri Lanka
A88: LRD | B88: Dólar liberiano
A89: LSL | B89: Loti
A90: LYD | B90: Dinar libio
A91: MAD | B91: Dírham marroquí
A92: MDL | B92: Leu moldavo
A93: MGA | B93: Ariary malgache
A94: MKD | B94: Denar
A95: MMK | B95: Kyat
A96: MNT | B96: Tugrik
A97: MOP | B97: Pataca
A98: MRU | B98: Uguiya
A99: MUR | B99: Rupia de Mauricio
A100: MVR | B100: Rufiyaa
A101: MWK | B101: Kwacha
A102: MXN | B102: Peso mexicano
A103: MXV | B103: Unidad de Inversión (UDI) mexicana
A104: MYR | B104: Ringgit malayo
A105: MZN | B105: Metical mozambiqueño
A106: NAD | B106: Dólar namibio
A107: NGN | B107: Naira
A108: NIO | B108: Córdoba
A109: NOK | B109: Corona noruega
A110: NPR | B110: Rupia nepalí
A111: NZD | B111: Dólar neozelandés
A112: OMR | B112: Rial omaní
A113: PAB | B113: Balboa
A114: PEN | B114: Sol
A115: PGK | B115: Kina
A116: PHP | B116: Peso filipino
A117: PKR | B117: Rupia pakistaní
A118: PLN | B118: Złoty
A119: QAR | B119: Riyal qatarí
A120: RON | B120: Leu rumano
A121: RSD | B121: Dinar serbio
A122: RUB | B122: Rublo ruso
A123: RWF | B123: Franco ruandés
A124: SAR | B124: Riyal saudí
A125: SBD | B125: Dólar de las Islas Salomón
A126: SCR | B126: Rupia seychelense
A127: SDG | B127: Dinar sudanés
A128: SEK | B128: Corona sueca
A129: SGD | B129: Dólar de Singapur
A130: SHP | B130: Libra de Santa Elena
A131: SLL | B131: Leone
A132: SOS | B132: Chelín somalí
A133: SRD | B133: Dólar surinamés
A134: SSP | B134: Libra sursudanesa
A135: STN | B135: Dobra
A136: SVC | B136: Colon Salvadoreño
A137: SYP | B137: Libra siria
A138: SZL | B138: Lilangeni
A139: THB | B139: Baht
A140: TJS | B140: Somoni tayiko
A141: TMT | B141: Manat turcomano
A142: TND | B142: Dinar tunecino
A143: TOP | B143: Paʻanga
A144: TRY | B144: Lira turca
A145: TTD | B145: Dólar de Trinidad y Tobago
A146: TWD | B146: Nuevo dólar taiwanés
A147: TZS | B147: Chelín tanzano
A148: UAH | B148: Grivna
A149: UGX | B149: Chelín ugandés
A150: USN | B150: Dólar estadounidense (Siguiente día)
A151: UYI | B151: Peso en Unidades Indexadas (Uruguay)
A152: UYU | B152: Peso uruguayo
A153: UYW | B153: Unidad Previsional
A154: UZS | B154: Som uzbeko
A155: VES7​ | B155: Bolívar soberano
A156: VND | B156: Dong vietnamita
A157: VUV | B157: Vatu
A158: WST | B158: Tala
A159: XAF | B159: Franco CFA de África Central
A160: XAG | B160: Plata (una onza troy)
A161: XAU | B161: Oro (una onza troy)
A162: XBA | B162: Unidad compuesta europea (EURCO) (Unidad del mercados de bonos)
A163: XBB | B163: Unidad Monetaria europea (E.M.U.-6) (Unidad del mercado de bonos)
A164: XBC | B164: Unidad europea de cuenta 9 (E.U.A.-9) (Unidad del mercado de bonos)
A165: XBD | B165: Unidad europea de cuenta 17 (E.U.A.-17) (Unidad del mercado de bonos)
A166: XCD | B166: Dólar del Caribe Oriental
A167: XDR | B167: Derechos especiales de giro
A168: XOF | B168: Franco CFA de África Occidental
A169: XPD | B169: Paladio (una onza troy)
A170: XPF | B170: Franco CFP
A171: XPT | B171: Platino (una onza troy)
A172: XSU | B172: SUCRE
A173: XTS | B173: Reservado para pruebas
A174: XUA | B174: Unidad de cuenta BAD
A175: XXX | B175: Sin divisa
A176: YER | B176: Rial yemení
A177: ZAR | B177: Rand
A178: ZMW | B178: Kwacha zambiano
A179: ZWL | B179: Dólar zimbabuense
